{"text_format":"1","workbook":"xlsx","n_sheets":4,"sheets":["Top_page","WiFi","BasicTag","Bluetooth"],"not_rendered":{"charts":0,"images":0,"macros":1,"external_links":0,"defined_names":8,"comments":0,"pivot_tables":0},"unopened":[],"bounds":{"document_bytes":16777216,"sheet_cells":100000,"rows_first":2000,"rows_last":500,"rows_between":2000,"halvings":0,"cell_chars":16384,"cell_head_chars":4096},"cells_cut":0,"cells_raw":0,"read":"whole","date_system":"1900"}

{"sheet":"Top_page","index":0,"n_rows":22,"n_cols":4,"rows_kept":22,"cut":false,"hidden":false,"merged":[]}
["Top_page"]
[]
[null,null,"This excel file creates the NDEF file for RF430CL300H."]
[]
[null,null,"Please follow the instruction in this file as follows:"]
[]
[null,null,"First of all,"]
[null,null,null,"please choose the application you would like to develop."]
[]
[]
[]
[]
[]
[]
[]
[]
[null,null,"Note:"]
[null,null,null,"This file was created with Office 2010."]
[null,null,null,"With previous version of Office, the some functions in this file may not work with default setting."]
[null,null,null,"Please visit the link below if there is anything does not work properly."]
[null,null,null,"Guide.  http://office.microsoft.com/en-us/excel-help/dec2hex-HP005209054.aspx"]
[null,null,null,"In addition,  please enable Macro-function as a part of this file requires Macro."]

{"sheet":"WiFi","index":1,"n_rows":196,"n_cols":20,"rows_kept":196,"cut":false,"hidden":false,"merged":[[61,7,61,9],[11,5,11,9],[7,5,7,9]]}
["WiFi"]
[]
[]
[null,null,"NDEF data for WiFi connection Handover application would be created."]
[]
[null,null,"1. Input SSID, security type, security key."]
[]
[null,null,null,"SSID",null,"TXHome"]
[]
[null,null,null,"security type",null,"open"]
[]
[null,null,null,"security key"]
[]
[null,null,null,"Note: 32 characters can be input for SSID/Security key filed."]
[null,null,null,"Please adjust the length of the SSID/Security as required."]
[null,null,null,"If security type is set as \"open\", do not input \"security key.\""]
[]
[null,null,"2. Create the output file."]
[]
[]
[]
[null,null,null,"Use Def file",null,"Off"]
[]
[null,null,null,"Name the output file by utilizing the output form."]
[]
[null,null,null,"If 'define' is utilized, please set Use Def file 'On.'"]
[null,null,null,"'/' is added automatically."]
[]
[]
[]
[]
[]
[null,"Out File Data detail."]
[]
[null,null,null,null,null,null,null,null,null,null,null,"#define RF430_APP_DATA {",null,null,null,null,null,null,null,{"$f":"L35&$C$196","v":"#define RF430_APP_DATA {"}]
[null,"NDEF Tag Application",null,null,null,null,null,null,null,null,null,"/*NDEF Tag Application */",null,null,null,null,null,null,null,{"$f":"C36&D36&E36&F36&G36&H36&I36&J36&\"    \"&L36&$C$196","v":"    /*NDEF Tag Application */"}]
[null,null,"0xD2, ","0x76, ","0x00, ","0x00, ","0x85, ","0x01, ","0x01, ",null,null,null,null,null,null,null,null,null,null,{"$f":"\"    \"&C37&D37&E37&F37&G37&H37&I37&\"    \"&L37&$C$196","v":"    0xD2, 0x76, 0x00, 0x00, 0x85, 0x01, 0x01,     "}]
[null,null,null,null,null,null,null,null,null,null,null,null,null,null,null,null,null,null,null,{"$f":"\"    \"&C38&D38&E38&F38&G38&H38&I38&J38&\"    \"&L38&$C$196","v":"        "}]
[null,"CC file ID"]
[null,null,"0xE1, ","0x03, ",null,null,null,null,null,null,null,"/*Capability Container ID*/ ",null,null,null,null,null,null,null,{"$f":"\"    \"&C40&D40&E40&F40&G40&H40&I40&J40&\"    \"&L40&$C$196","v":"    0xE1, 0x03,     /*Capability Container ID*/ "}]
[null,null,null,null,null,null,null,null,null,null,null,null,null,null,null,null,null,null,null,{"$f":"\"    \"&\"    \"&$C$196","v":"        "}]
[null,"CC file",null,null,null,null,null,null,null,null,null,"/* CC file start */",null,null,null,null,null,null,null,{"$f":"C42&D42&E42&F42&G42&H42&I42&J42&\"    \"&L42&$C$196","v":"    /* CC file start */"}]
[null,null,"0x00, ","0x0F, ",null,null,null,null,null,null,null,"/* CCLEN 15bytes fix*/",null,null,null,null,null,null,null,{"$f":"\"    \"&C43&D43&E43&F43&G43&H43&I43&J43&\"    \"&L43&$C$196","v":"    0x00, 0x0F,     /* CCLEN 15bytes fix*/"}]
[null,null,"0x20, ",null,null,null,null,null,null,null,null,"/* Mapping version 2.0 */",null,null,null,null,null,null,null,"    0x20,     /* Mapping version 2.0 */"]
[null,null,"0x00, ","0xF9, ",null,null,null,null,null,null,null,"/* MLe (49 bytes); Maximum R-APDU data size */",null,null,null,null,null,null,null,"    0x00, 0xF9,     /* MLe (49 bytes); Maximum R-APDU data size */"]
[null,null,"0x00, ","0xF6, ",null,null,null,null,null,null,null,"/* MLc (52 bytes); Maximum C-APDU data size */",null,null,null,null,null,null,null,"    0x00, 0xF6,     /* MLc (52 bytes); Maximum C-APDU data size */"]
[null,"T field","0x04, ",null,null,null,null,null,null,null,null,"/* Tag, File Control TLV (4 = NDEF file) */",null,null,null,null,null,null,null,"    0x04,     /* Tag, File Control TLV (4 = NDEF file) */"]
[null,"L field","0x06, ",null,null,null,null,null,null,null,null,"/* Length, File Control TLV (6 = 6 bytes of data for this tag) */",null,null,null,null,null,null,null,"    0x06,     /* Length, File Control TLV (6 = 6 bytes of data for this tag) */"]
[null,"V field","0xE1, ","0x04, ",null,null,null,null,null,null,null,"/* Type4 Tag File Identifier */",null,null,null,null,null,null,null,"    0xE1, 0x04,     /* Type4 Tag File Identifier */"]
[null,null,"0x0B, ","0xDF, ",null,null,null,null,null,null,null,"/* Max NDEF size (3037 bytes of RF430CL330 useable memory) */",null,null,null,null,null,null,null,"    0x0B, 0xDF,     /* Max NDEF size (3037 bytes of RF430CL330 useable memory) */"]
[null,null,"0x00, ",null,null,null,null,null,null,null,null,"/* NDEF file read access condition, read access without any security */",null,null,null,null,null,null,null,"    0x00,     /* NDEF file read access condition, read access without any security */"]
[null,null,"0x00, ",null,null,null,null,null,null,null,null,"/* NDEF file write access condition; write access without any security */",null,null,null,null,null,null,null,"    0x00,     /* NDEF file write access condition; write access without any security */"]
[null,null,null,null,null,null,null,null,null,null,null,"/* CC file end */",null,null,null,null,null,null,null,{"$f":"C53&D53&E53&F53&G53&H53&I53&J53&\"    \"&L53&$C$196","v":"    /* CC file end */"}]
[null,"NDEF file ID",null,null,null,null,null,null,null,null,null,null,null,null,null,null,null,null,null,{"$f":"\"    \"&\"    \"&$C$196","v":"        "}]
[null,null,"0xE1, ","0x04, ",null,null,null,null,null,null,null,"/* NDEF File ID */ ",null,null,null,null,null,null,null,{"$f":"\"    \"&C55&D55&E55&F55&G55&H55&I55&J55&\"    \"&L55&$C$196","v":"    0xE1, 0x04,     /* NDEF File ID */ "}]
[null,null,null,null,null,null,null,null,null,null,null,null,null,null,null,null,null,null,null,{"$f":"\"    \"&\"    \"&$C$196","v":"        "}]
[null,"NLEN"]
[null,null,"0x00, ",{"$f":"L193","v":"0x17,"},null,null,null,null,null,null,null,{"$f":"\"/* NDEF Length \"&F193&\"bytes */\"","v":"/* NDEF Length 23bytes */"},null,null,null,null,null,null,null,{"$f":"\"    \"&C58&D58&E58&F58&G58&H58&I58&J58&\"    \"&L58&$C$196","v":"    0x00, 0x17,    /* NDEF Length 23bytes */"}]
[null,null,null,null,null,null,null,null,null,null,null,null,null,null,null,null,null,null,null,{"$f":"\"    \"&\"    \"&$C$196","v":"        "}]
[null,"NDEF",null,null,null,null,null,null,null,null,null,"/* NDEF start */",null,null,null,null,null,null,null,{"$f":"C60&D60&E60&F60&G60&H60&I60&J60&\"    \"&L60&$C$196","v":"    /* NDEF start */"}]
[null,"Header","0xD1,",null,null,null,null,null,null,null,null,"/* NDEF Header MB=1, ME=1, CF=0, SR=1, IL=0, TNF=1 */",null,null,null,null,null,null,null,{"$f":"\"    \"&C61&D61&E61&F61&G61&H61&I61&J61&\"    \"&L61&$C$196","v":"    0xD1,    /* NDEF Header MB=1, ME=1, CF=0, SR=1, IL=0, TNF=1 */"}]
[null,null,"MB","ME","CF","SR","IL","TNF",null,null,null,null,null,null,null,null,null,null,null,{"$f":"\"    \"&\"    \"&$C$196","v":"        "}]
[null,null,1,1,0,1,0,0,0,1]
[null,"Type Length"]
[null,null,"0x01,",null,null,null,null,null,null,null,null,"/* Type Length 1 byte */",null,null,null,null,null,null,null,{"$f":"\"    \"&C65&D65&E65&F65&G65&H65&I65&J65&\"    \"&L65&$C$196","v":"    0x01,    /* Type Length 1 byte */"}]
[null,"Payload Length",null,null,null,null,null,null,null,null,null,null,null,null,null,null,null,null,null,{"$f":"\"    \"&\"    \"&$C$196","v":"        "}]
[null,null,{"$f":"L185","v":"0x13,"},null,null,null,null,null,null,null,null,{"$f":"\"/* Payload length \"&F185&\"bytes */\"","v":"/* Payload length 19bytes */"},null,null,null,null,null,null,null,{"$f":"\"    \"&C67&D67&E67&F67&G67&H67&I67&J67&\"    \"&L67&$C$196","v":"    0x13,    /* Payload length 19bytes */"}]
[null,"Record Type",null,null,null,null,null,null,null,null,null,null,null,null,null,null,null,null,null,{"$f":"\"    \"&\"    \"&$C$196","v":"        "}]
[null,null,"0x55,",null,null,null,null,null,null,null,null,"/* Type U (URI) */",null,null,null,null,null,null,null,{"$f":"\"    \"&C69&D69&E69&F69&G69&H69&I69&J69&\"    \"&L69&$C$196","v":"    0x55,    /* Type U (URI) */"}]
[null,"Payload",null,null,null,null,null,null,null,null,null,"/* Payload start */",null,null,null,null,null,null,null,{"$f":"C70&D70&E70&F70&G70&H70&I70&J70&\"    \"&L70&$C$196","v":"    /* Payload start */"}]
[null,"URI Record Type",null,null,null,null,null,null,null,null,null,null,null,null,null,null,null,null,null,{"$f":"\"    \"&\"    \"&$C$196","v":"        "}]
[null,null,"0x00,",null,null,null,null,null,null,null,null,"/* URI Record Type : No abbreviation */",null,null,null,null,null,null,null,{"$f":"\"    \"&C72&D72&E72&F72&G72&H72&I72&J72&\"    \"&L72&$C$196","v":"    0x00,    /* URI Record Type : No abbreviation */"}]
[null,"wifi://",null,null,null,null,null,null,null,null,null,null,null,null,null,null,null,null,null,{"$f":"\"    \"&\"    \"&$C$196","v":"        "}]
[null,null,{"$f":"L170","v":"0x77, "},"0x69, ","0x66, ","0x69, ","0x3A, ","0x2F, ","0x2F, ",null,null,"/* wifi:// text */",null,null,null,null,null,null,null,{"$f":"\"    \"&C74&D74&E74&F74&G74&H74&I74&J74&\"    \"&L74&$C$196","v":"    0x77, 0x69, 0x66, 0x69, 0x3A, 0x2F, 0x2F,     /* wifi:// text */"}]
[null,"SSID",null,null,null,null,null,null,null,null,null,{"$f":"\"/* SSID \"&C154&\" */\"","v":"/* SSID TXHome */"},null,null,null,null,null,null,null,{"$f":"C75&D75&E75&F75&G75&H75&I75&J75&\"    \"&L75&$C$196","v":"    /* SSID TXHome */"}]
[null,null,{"$f":"L155","v":"0x54, "},"0x58, ","0x48, ","0x6F, ","0x6D, ","0x65, ","","",null,null,null,null,null,null,null,null,null,{"$f":"\"    \"&C76&D76&E76&F76&G76&H76&I76&J76&\"    \"&L76&$C$196","v":"    0x54, 0x58, 0x48, 0x6F, 0x6D, 0x65,     "}]
[null,null,"","","","","","","","",null,null,null,null,null,null,null,null,null,{"$f":"\"    \"&C77&D77&E77&F77&G77&H77&I77&J77&\"    \"&L77&$C$196","v":"        "}]
[null,null,"","","","","","","","",null,null,null,null,null,null,null,null,null,{"$f":"\"    \"&C78&D78&E78&F78&G78&H78&I78&J78&\"    \"&L78&$C$196","v":"        "}]
[null,null,"","","","","","","","",null,null,null,null,null,null,null,null,null,{"$f":"\"    \"&C79&D79&E79&F79&G79&H79&I79&J79&\"    \"&L79&$C$196","v":"        "}]
[null,"1st /",null,null,null,null,null,null,null,null,null,null,null,null,null,null,null,null,null,{"$f":"\"    \"&\"    \"&$C$196","v":"        "}]
[null,null,"0x2F,",null,null,null,null,null,null,null,null,"/* 1st / */",null,null,null,null,null,null,null,{"$f":"\"    \"&C81&D81&E81&F81&G81&H81&I81&J81&\"    \"&L81&$C$196","v":"    0x2F,    /* 1st / */"}]
[null,"security type",null,null,null,null,null,null,null,null,null,null,null,null,null,null,null,null,null,{"$f":"\"    \"&\"    \"&$C$196","v":"        "}]
[null,null,{"$f":"L167","v":"0x6F, "},"0x70, ","0x65, ","0x6E, ",null,null,null,null,null,{"$f":"\"/* security type \"&C145&\" */\"","v":"/* security type open */"},null,null,null,null,null,null,null,{"$f":"\"    \"&C83&D83&E83&F83&G83&H83&I83&J83&\"    \"&L83&$C$196","v":"    0x6F, 0x70, 0x65, 0x6E,     /* security type open */"}]
[null,"2nd /",null,null,null,null,null,null,null,null,null,null,null,null,null,null,null,null,null,{"$f":"\"    \"&\"    \"&$C$196","v":"        "}]
[null,null,{"$f":"IF(F10=\"open\",\"\",\"0x2F,\")","v":""},null,null,null,null,null,null,null,null,{"$f":"IF(F10=\"open\",\"\",\"/* 2nd / */\")","v":""},null,null,null,null,null,null,null,{"$f":"\"    \"&C85&D85&E85&F85&G85&H85&I85&J85&\"    \"&L85&$C$196","v":"        "}]
[null,"security key",null,null,null,null,null,null,null,null,null,{"$f":"IF(F10=\"open\",\"\",\"/* security key \"&C160&\" */\")","v":""},null,null,null,null,null,null,null,{"$f":"\"    \"&C86&D86&E86&F86&G86&H86&I86&J86&\"\"&L86&$C$196","v":"    "}]
[null,null,{"$f":"L161","v":""},"","","","","","","",null,null,null,null,null,null,null,null,null,{"$f":"\"    \"&C87&D87&E87&F87&G87&H87&I87&J87&\"    \"&L87&$C$196","v":"        "}]
[null,null,"","","","","","","","",null,null,null,null,null,null,null,null,null,{"$f":"\"    \"&C88&D88&E88&F88&G88&H88&I88&J88&\"    \"&L88&$C$196","v":"        "}]
[null,null,"","","","","","","","",null,null,null,null,null,null,null,null,null,{"$f":"\"    \"&C89&D89&E89&F89&G89&H89&I89&J89&\"    \"&L89&$C$196","v":"        "}]
[null,null,"","","","","","","","",null,null,null,null,null,null,null,null,null,{"$f":"\"    \"&C90&D90&E90&F90&G90&H90&I90&J90&\"    \"&L90&$C$196","v":"        "}]
[null,null,null,null,null,null,null,null,null,null,null,"} /* End of data */",null,null,null,null,null,null,null,{"$f":"C91&D91&E91&F91&G91&H91&I91&J91&L91","v":"} /* End of data */"}]
[]
[]
[]
[]
[]
[]
[]
[]
[]
[]
[]
[]
[]
[]
[]
[]
[]
[]
[]
[]
[]
[]
[]
[]
[]
[]
[]
[]
[]
[]
[]
[]
[]
[]
[]
[]
[]
[]
[]
[]
[]
[]
[]
[]
[]
[]
[]
[]
[null,"Input resorber"]
[null,"SSID"]
[null,null,{"$f":"F8","v":"TXHome"}]
[null,"security type list"]
[null,null,"open","WEP","WPA"]
[null,null,{"$f":"F10","v":"open"}]
[null,"security key"]
[null,null,{"$f":"F12","v":0}]
[]
[null,"Num",1,2,3,4,5,6,7,8]
[null,null,9,10,11,12,13,14,15,16]
[null,null,17,18,19,20,21,22,23,24]
[null,null,25,26,27,28,29,30,31,32]
[null,"SSID ASCII"]
[null,null,{"$f":"C142","v":"TXHome"}]
[null,null,{"$f":"MID($C$154,C149,1)","v":"T"},{"$f":"MID($C$154,D149,1)","v":"X"},"H","o","m","e","","",null,{"$f":"IF(ISERR(CODE(C155)),\"\",\"0x\"&DEC2HEX(CODE(C155))&\", \")","v":"0x54, "},{"$f":"IF(ISERR(CODE(D155)),\"\",\"0x\"&DEC2HEX(CODE(D155))&\", \")","v":"0x58, "},"0x48, ","0x6F, ","0x6D, ","0x65, ","",""]
[null,null,{"$f":"MID($C$154,C150,1)","v":""},"","","","","","","",null,{"$f":"IF(ISERR(CODE(C156)),\"\",\"0x\"&DEC2HEX(CODE(C156))&\", \")","v":""},"","","","","","",""]
[null,null,{"$f":"MID($C$154,C151,1)","v":""},"","","","","","","",null,"","","","","","","",""]
[null,null,{"$f":"MID($C$154,C152,1)","v":""},"","","","","","","",null,"","","","","","","",""]
[null,"Key ASCII"]
[null,null,{"$f":"IF(F10=\"open\",\"\",C147)","v":""}]
[null,null,{"$f":"MID($C$160,C149,1)","v":""},{"$f":"MID($C$160,D149,1)","v":""},"","","","","","",null,{"$f":"IF(ISERR(CODE(C161)),\"\",\"0x\"&DEC2HEX(CODE(C161))&\", \")","v":""},{"$f":"IF(ISERR(CODE(D161)),\"\",\"0x\"&DEC2HEX(CODE(D161))&\", \")","v":""},{"$f":"IF(ISERR(CODE(E161)),\"\",\"0x\"&DEC2HEX(CODE(E161))&\", \")","v":""},{"$f":"IF(ISERR(CODE(F161)),\"\",\"0x\"&DEC2HEX(CODE(F161))&\", \")","v":""},{"$f":"IF(ISERR(CODE(G161)),\"\",\"0x\"&DEC2HEX(CODE(G161))&\", \")","v":""},{"$f":"IF(ISERR(CODE(H161)),\"\",\"0x\"&DEC2HEX(CODE(H161))&\", \")","v":""},{"$f":"IF(ISERR(CODE(I161)),\"\",\"0x\"&DEC2HEX(CODE(I161))&\", \")","v":""},{"$f":"IF(ISERR(CODE(J161)),\"\",\"0x\"&DEC2HEX(CODE(J161))&\", \")","v":""}]
[null,null,{"$f":"MID($C$160,C150,1)","v":""},"","","","","","","",null,{"$f":"IF(ISERR(CODE(C162)),\"\",\"0x\"&DEC2HEX(CODE(C162))&\", \")","v":""},"","","","","","",""]
[null,null,{"$f":"MID($C$160,C151,1)","v":""},"","","","","","","",null,"","","","","","","",""]
[null,null,{"$f":"MID($C$160,C152,1)","v":""},"","","","","","","",null,"","","","","","","",""]
[]
[null,"Sec key"]
[null,null,{"$f":"MID($C$145,C149,1)","v":"o"},{"$f":"MID($C$145,D149,1)","v":"p"},"e","n",null,null,null,null,null,{"$f":"IF(ISERR(CODE(C167)),\"\",\"0x\"&DEC2HEX(CODE(C167))&\", \")","v":"0x6F, "},{"$f":"IF(ISERR(CODE(D167)),\"\",\"0x\"&DEC2HEX(CODE(D167))&\", \")","v":"0x70, "},{"$f":"IF(ISERR(CODE(E167)),\"\",\"0x\"&DEC2HEX(CODE(E167))&\", \")","v":"0x65, "},{"$f":"IF(ISERR(CODE(F167)),\"\",\"0x\"&DEC2HEX(CODE(F167))&\", \")","v":"0x6E, "}]
[]
[null,null,"wifi://"]
[null,null,{"$f":"MID($C$169,C149,1)","v":"w"},"i","f","i",":","/","/",null,null,{"$f":"IF(ISERR(CODE(C170)),\"\",\"0x\"&DEC2HEX(CODE(C170))&\", \")","v":"0x77, "},{"$f":"IF(ISERR(CODE(D170)),\"\",\"0x\"&DEC2HEX(CODE(D170))&\", \")","v":"0x69, "},{"$f":"IF(ISERR(CODE(E170)),\"\",\"0x\"&DEC2HEX(CODE(E170))&\", \")","v":"0x66, "},{"$f":"IF(ISERR(CODE(F170)),\"\",\"0x\"&DEC2HEX(CODE(F170))&\", \")","v":"0x69, "},{"$f":"IF(ISERR(CODE(G170)),\"\",\"0x\"&DEC2HEX(CODE(G170))&\", \")","v":"0x3A, "},{"$f":"IF(ISERR(CODE(H170)),\"\",\"0x\"&DEC2HEX(CODE(H170))&\", \")","v":"0x2F, "},{"$f":"IF(ISERR(CODE(I170)),\"\",\"0x\"&DEC2HEX(CODE(I170))&\", \")","v":"0x2F, "}]
[]
[]
[null,"output confirm list",null,"On","Off",null,"confirm",{"$f":"F20","v":0}]
[null,"deffile list",null,"On","Off",null,"deffile",{"$f":"F22","v":"Off"}]
[]
[]
[null,null,"Count Payload Length"]
[null,null,null,"URI TYPE",null,1]
[null,null,null,"wifi://",null,{"$f":"COUNTA(L170:R170)-COUNTIF(L170:R170,\"\")","v":7}]
[null,null,null,"SSID",null,{"$f":"COUNTA(L155:S158)-COUNTIF(L155:S158,\"\")","v":6}]
[null,null,null,"1st /",null,1]
[null,null,null,"security type",null,{"$f":"COUNTA(L167:O167)-COUNTIF(L167:O167,\"\")","v":4}]
[null,null,null,"2nd /",null,{"$f":"IF(F10=\"open\",0,1)","v":0}]
[null,null,null,"security key",null,{"$f":"IF(F10=\"open\",0,COUNTA(L161:S164)-COUNTIF(L161:S164,\"\"))","v":0}]
[null,null,null,"total length",null,{"$f":"SUM(F178:F184)","v":19},null,null,null,null,null,{"$f":"\"0x\"&DEC2HEX(F185)&\",\"","v":"0x13,"}]
[]
[null,null,"Count NDEF length"]
[null,null,null,"Header length",null,1]
[null,null,null,"Type length length",null,1]
[null,null,null,"Payload length length",null,1]
[null,null,null,"Record type length",null,1]
[null,null,null,"Payload",null,{"$f":"F185","v":19}]
[null,null,null,"total length",null,{"$f":"SUM(F188:F192)","v":23},null,null,null,null,null,{"$f":"\"0x\"&DEC2HEX(F193)&\",\"","v":"0x17,"}]
[]
[]
[null,"文末",{"$f":"IF(H174=\"On\",\"    \\\",\"\")","v":""}]

{"sheet":"BasicTag","index":2,"n_rows":240,"n_cols":20,"rows_kept":240,"cut":false,"hidden":false,"merged":[[66,7,66,9],[9,3,9,7],[13,3,14,9]]}
["BasicTag"]
[]
[]
[null,null,"NDEF data for Basic Tag Application would be created."]
[]
[null,null,"In this application, you can to store an URL, a telephone number, a mail address"]
[null,null,"or a proprietary URI on a tag."]
[]
[null,null,"1. Select your application from the list below."]
[null,null,null,"http://www.",null,null,null,null,null,"URI ID Code",null,{"$f":"VLOOKUP(D10,C204:D239,2,FALSE)","v":"0x01"}]
[]
[]
[null,null,"2. Input the rest of the URI, or the entire URI if identifier code is 0x00."]
[null,null,null,"dlpdesign.com"]
[]
[]
[null,null,null,"For example, if the content of this field is 0x01, and the content of the URI"]
[null,null,null,"field reads as 'ti.com', the resulting URI is 'http://www.ti.com'."]
[]
[null,null,null,"Note: Up to 128 characters can be input test field."]
[null,null,null,"Please adjust the length of your application required."]
[]
[null,null,"3. Create the output file."]
[]
[]
[]
[null,null,null,"Use Def file",null,"On"]
[]
[null,null,null,"Name the output file by utilizing the output form."]
[]
[null,null,null,"Note: If 'define' is utilized, please set Use Def file 'On.'"]
[null,null,null,"'/' is added automatically."]
[]
[]
[]
[]
[]
[null,"Out File Data detail."]
[]
[null,null,null,null,null,null,null,null,null,null,null,"#define RF430_APP_DATA {",null,null,null,null,null,null,null,{"$f":"L40&$C$199","v":"#define RF430_APP_DATA {    \\"}]
[null,"NDEF Tag Application",null,null,null,null,null,null,null,null,null,"/*NDEF Tag Application */",null,null,null,null,null,null,null,{"$f":"C41&D41&E41&F41&G41&H41&I41&J41&\"    \"&L41&$C$199","v":"    /*NDEF Tag Application */    \\"}]
[null,null,"0xD2, ","0x76, ","0x00, ","0x00, ","0x85, ","0x01, ","0x01, ",null,null,null,null,null,null,null,null,null,null,{"$f":"\"    \"&C42&D42&E42&F42&G42&H42&I42&\"    \"&L42&$C$199","v":"    0xD2, 0x76, 0x00, 0x00, 0x85, 0x01, 0x01,         \\"}]
[null,null,null,null,null,null,null,null,null,null,null,null,null,null,null,null,null,null,null,{"$f":"\"    \"&C43&D43&E43&F43&G43&H43&I43&J43&\"    \"&L43&$C$199","v":"            \\"}]
[null,"CC file ID"]
[null,null,"0xE1, ","0x03, ",null,null,null,null,null,null,null,"/*Capability Container ID*/ ",null,null,null,null,null,null,null,{"$f":"\"    \"&C45&D45&E45&F45&G45&H45&I45&J45&\"    \"&L45&$C$199","v":"    0xE1, 0x03,     /*Capability Container ID*/     \\"}]
[null,null,null,null,null,null,null,null,null,null,null,null,null,null,null,null,null,null,null,{"$f":"\"    \"&\"    \"&$C$199","v":"            \\"}]
[null,"CC file",null,null,null,null,null,null,null,null,null,"/* CC file start */",null,null,null,null,null,null,null,{"$f":"C47&D47&E47&F47&G47&H47&I47&J47&\"    \"&L47&$C$199","v":"    /* CC file start */    \\"}]
[null,null,"0x00, ","0x0F, ",null,null,null,null,null,null,null,"/* CCLEN 15bytes fix*/",null,null,null,null,null,null,null,{"$f":"\"    \"&C48&D48&E48&F48&G48&H48&I48&J48&\"    \"&L48&$C$199","v":"    0x00, 0x0F,     /* CCLEN 15bytes fix*/    \\"}]
[null,null,"0x20, ",null,null,null,null,null,null,null,null,"/* Mapping version 2.0 */",null,null,null,null,null,null,null,"    0x20,     /* Mapping version 2.0 */    \\"]
[null,null,"0x00, ","0xF9, ",null,null,null,null,null,null,null,"/* MLe (49 bytes); Maximum R-APDU data size */",null,null,null,null,null,null,null,"    0x00, 0xF9,     /* MLe (49 bytes); Maximum R-APDU data size */    \\"]
[null,null,"0x00, ","0xF6, ",null,null,null,null,null,null,null,"/* MLc (52 bytes); Maximum C-APDU data size */",null,null,null,null,null,null,null,"    0x00, 0xF6,     /* MLc (52 bytes); Maximum C-APDU data size */    \\"]
[null,"T field","0x04, ",null,null,null,null,null,null,null,null,"/* Tag, File Control TLV (4 = NDEF file) */",null,null,null,null,null,null,null,"    0x04,     /* Tag, File Control TLV (4 = NDEF file) */    \\"]
[null,"L field","0x06, ",null,null,null,null,null,null,null,null,"/* Length, File Control TLV (6 = 6 bytes of data for this tag) */",null,null,null,null,null,null,null,"    0x06,     /* Length, File Control TLV (6 = 6 bytes of data for this tag) */    \\"]
[null,"V field","0xE1, ","0x04, ",null,null,null,null,null,null,null,"/* Type4 Tag File Identifier */",null,null,null,null,null,null,null,"    0xE1, 0x04,     /* Type4 Tag File Identifier */    \\"]
[null,null,"0x0B, ","0xDF, ",null,null,null,null,null,null,null,"/* Max NDEF size (3037 bytes of RF430CL330 useable memory) */",null,null,null,null,null,null,null,"    0x0B, 0xDF,     /* Max NDEF size (3037 bytes of RF430CL330 useable memory) */    \\"]
[null,null,"0x00, ",null,null,null,null,null,null,null,null,"/* NDEF file read access condition, read access without any security */",null,null,null,null,null,null,null,"    0x00,     /* NDEF file read access condition, read access without any security */    \\"]
[null,null,"0x00, ",null,null,null,null,null,null,null,null,"/* NDEF file write access condition; write access without any security */",null,null,null,null,null,null,null,"    0x00,     /* NDEF file write access condition; write access without any security */    \\"]
[null,null,null,null,null,null,null,null,null,null,null,"/* CC file end */",null,null,null,null,null,null,null,{"$f":"C58&D58&E58&F58&G58&H58&I58&J58&\"    \"&L58&$C$199","v":"    /* CC file end */    \\"}]
[null,"NDEF file ID",null,null,null,null,null,null,null,null,null,null,null,null,null,null,null,null,null,{"$f":"\"    \"&\"    \"&$C$199","v":"            \\"}]
[null,null,"0xE1, ","0x04, ",null,null,null,null,null,null,null,"/* NDEF File ID */ ",null,null,null,null,null,null,null,{"$f":"\"    \"&C60&D60&E60&F60&G60&H60&I60&J60&\"    \"&L60&$C$199","v":"    0xE1, 0x04,     /* NDEF File ID */     \\"}]
[null,null,null,null,null,null,null,null,null,null,null,null,null,null,null,null,null,null,null,{"$f":"\"    \"&\"    \"&$C$199","v":"            \\"}]
[null,"NLEN"]
[null,null,"0x00, ",{"$f":"L196","v":"0x12,"},null,null,null,null,null,null,null,{"$f":"\"/* NDEF Length \"&F196&\"bytes */\"","v":"/* NDEF Length 18bytes */"},null,null,null,null,null,null,null,{"$f":"\"    \"&C63&D63&E63&F63&G63&H63&I63&J63&\"    \"&L63&$C$199","v":"    0x00, 0x12,    /* NDEF Length 18bytes */    \\"}]
[null,null,null,null,null,null,null,null,null,null,null,null,null,null,null,null,null,null,null,{"$f":"\"    \"&\"    \"&$C$199","v":"            \\"}]
[null,"NDEF",null,null,null,null,null,null,null,null,null,"/* NDEF start */",null,null,null,null,null,null,null,{"$f":"C65&D65&E65&F65&G65&H65&I65&J65&\"    \"&L65&$C$199","v":"    /* NDEF start */    \\"}]
[null,"Header","0xD1,",null,null,null,null,null,null,null,null,"/* NDEF Header MB=1, ME=1, CF=0, SR=1, IL=0, TNF=1 */",null,null,null,null,null,null,null,{"$f":"\"    \"&C66&D66&E66&F66&G66&H66&I66&J66&\"    \"&L66&$C$199","v":"    0xD1,    /* NDEF Header MB=1, ME=1, CF=0, SR=1, IL=0, TNF=1 */    \\"}]
[null,null,"MB","ME","CF","SR","IL","TNF",null,null,null,null,null,null,null,null,null,null,null,{"$f":"\"    \"&\"    \"&$C$199","v":"            \\"}]
[null,null,1,1,0,1,0,0,0,1]
[null,"Type Length"]
[null,null,"0x01,",null,null,null,null,null,null,null,null,"/* Type Length 1 byte */",null,null,null,null,null,null,null,{"$f":"\"    \"&C70&D70&E70&F70&G70&H70&I70&J70&\"    \"&L70&$C$199","v":"    0x01,    /* Type Length 1 byte */    \\"}]
[null,"Payload Length",null,null,null,null,null,null,null,null,null,null,null,null,null,null,null,null,null,{"$f":"\"    \"&\"    \"&$C$199","v":"            \\"}]
[null,null,{"$f":"L188","v":"0x0E,"},null,null,null,null,null,null,null,null,{"$f":"\"/* Payload length \"&F188&\"bytes */\"","v":"/* Payload length 14bytes */"},null,null,null,null,null,null,null,{"$f":"\"    \"&C72&D72&E72&F72&G72&H72&I72&J72&\"    \"&L72&$C$199","v":"    0x0E,    /* Payload length 14bytes */    \\"}]
[null,"Record Type",null,null,null,null,null,null,null,null,null,null,null,null,null,null,null,null,null,{"$f":"\"    \"&\"    \"&$C$199","v":"            \\"}]
[null,null,"0x55,",null,null,null,null,null,null,null,null,"/* Type U (URI) */",null,null,null,null,null,null,null,{"$f":"\"    \"&C74&D74&E74&F74&G74&H74&I74&J74&\"    \"&L74&$C$199","v":"    0x55,    /* Type U (URI) */    \\"}]
[null,"Payload",null,null,null,null,null,null,null,null,null,"/* Payload start */",null,null,null,null,null,null,null,{"$f":"C75&D75&E75&F75&G75&H75&I75&J75&\"    \"&L75&$C$199","v":"    /* Payload start */    \\"}]
[null,"URI Record Type",null,null,null,null,null,null,null,null,null,null,null,null,null,null,null,null,null,{"$f":"\"    \"&\"    \"&$C$199","v":"            \\"}]
[null,null,{"$f":"L10&\", \"","v":"0x01, "},null,null,null,null,null,null,null,null,{"$f":"\"/* URI Record Type : \"&D10&\"  */\"","v":"/* URI Record Type : http://www.  */"},null,null,null,null,null,null,null,{"$f":"\"    \"&C77&D77&E77&F77&G77&H77&I77&J77&\"    \"&L77&$C$199","v":"    0x01,     /* URI Record Type : http://www.  */    \\"}]
[null,"AppData",null,null,null,null,null,null,null,null,null,{"$f":"\"/*Appliction Data : \"&D14&\" */\"","v":"/*Appliction Data : dlpdesign.com */"},null,null,null,null,null,null,null,{"$f":"C78&D78&E78&F78&G78&H78&I78&J78&\"    \"&L78&$C$199","v":"    /*Appliction Data : dlpdesign.com */    \\"}]
[null,null,{"$f":"M165","v":"0x64, "},{"$f":"N165","v":"0x6C, "},{"$f":"O165","v":"0x70, "},{"$f":"P165","v":"0x64, "},{"$f":"Q165","v":"0x65, "},{"$f":"R165","v":"0x73, "},{"$f":"S165","v":"0x69, "},{"$f":"T165","v":"0x67, "},null,null,null,null,null,null,null,null,null,{"$f":"\"    \"&C79&D79&E79&F79&G79&H79&I79&J79&\"    \"&L79&$C$199","v":"    0x64, 0x6C, 0x70, 0x64, 0x65, 0x73, 0x69, 0x67,         \\"}]
[null,null,"0x6E, ","0x2E, ","0x63, ","0x6F, ","0x6D, ","","","",null,null,null,null,null,null,null,null,null,"    0x6E, 0x2E, 0x63, 0x6F, 0x6D,         \\"]
[null,null,"","","","","","","","",null,null,null,null,null,null,null,null,null,"            \\"]
[null,null,"","","","","","","","",null,null,null,null,null,null,null,null,null,"            \\"]
[null,null,"","","","","","","","",null,null,null,null,null,null,null,null,null,"            \\"]
[null,null,"","","","","","","","",null,null,null,null,null,null,null,null,null,"            \\"]
[null,null,"","","","","","","","",null,null,null,null,null,null,null,null,null,"            \\"]
[null,null,"","","","","","","","",null,null,null,null,null,null,null,null,null,"            \\"]
[null,null,"","","","","","","","",null,null,null,null,null,null,null,null,null,"            \\"]
[null,null,"","","","","","","","",null,null,null,null,null,null,null,null,null,"            \\"]
[null,null,"","","","","","","","",null,null,null,null,null,null,null,null,null,"            \\"]
[null,null,"","","","","","","","",null,null,null,null,null,null,null,null,null,"            \\"]
[null,null,"","","","","","","","",null,null,null,null,null,null,null,null,null,"            \\"]
[null,null,"","","","","","","","",null,null,null,null,null,null,null,null,null,"            \\"]
[null,null,"","","","","","","","",null,null,null,null,null,null,null,null,null,"            \\"]
[null,null,"","","","","","","","",null,null,null,null,null,null,null,null,null,"            \\"]
[null,null,null,null,null,null,null,null,null,null,null,"} /* End of data */",null,null,null,null,null,null,null,{"$f":"C95&D95&E95&F95&G95&H95&I95&J95&L95","v":"} /* End of data */"}]
[]
[]
[]
[]
[]
[]
[]
[]
[]
[]
[]
[]
[]
[]
[]
[]
[]
[]
[]
[]
[]
[]
[]
[]
[]
[]
[]
[]
[]
[]
[]
[]
[]
[]
[]
[]
[]
[]
[]
[]
[]
[]
[]
[]
[]
[]
[]
[]
[null,"Input resorber"]
[null,"Num",1,2,3,4,5,6,7,8]
[null,null,9,10,11,12,13,14,15,16]
[null,null,17,18,19,20,21,22,23,24]
[null,null,25,26,27,28,29,30,31,32]
[null,null,33,34,35,36,37,38,39,40]
[null,null,41,42,43,44,45,46,47,48]
[null,null,49,50,51,52,53,54,55,56]
[null,null,57,58,59,60,61,62,63,64]
[null,null,65,66,67,68,69,70,71,72]
[null,null,73,74,75,76,77,78,79,80]
[null,null,81,82,83,84,85,86,87,88]
[null,null,89,90,91,92,93,94,95,96]
[null,null,97,98,99,100,101,102,103,104]
[null,null,105,106,107,108,109,110,111,112]
[null,null,113,114,115,116,117,118,119,120]
[null,null,121,122,123,124,125,126,127,128]
[]
[]
[null,"ApplicationData"]
[null,null,{"$f":"D14","v":"dlpdesign.com"}]
[null,1,{"$f":"MID($C$164,C145,1)","v":"d"},{"$f":"MID($C$164,D145,1)","v":"l"},"p","d","e","s","i","g",null,null,{"$f":"IF(ISERR(CODE(C165)),\"\",\"0x\"&DEC2HEX(CODE(C165))&\", \")","v":"0x64, "},{"$f":"IF(ISERR(CODE(D165)),\"\",\"0x\"&DEC2HEX(CODE(D165))&\", \")","v":"0x6C, "},"0x70, ","0x64, ","0x65, ","0x73, ","0x69, ","0x67, "]
[null,9,"n",{"$f":"MID($C$164,D146,1)","v":"."},"c","o","m","","","",null,null,"0x6E, ",{"$f":"IF(ISERR(CODE(D166)),\"\",\"0x\"&DEC2HEX(CODE(D166))&\", \")","v":"0x2E, "},{"$f":"IF(ISERR(CODE(E166)),\"\",\"0x\"&DEC2HEX(CODE(E166))&\", \")","v":"0x63, "},{"$f":"IF(ISERR(CODE(F166)),\"\",\"0x\"&DEC2HEX(CODE(F166))&\", \")","v":"0x6F, "},{"$f":"IF(ISERR(CODE(G166)),\"\",\"0x\"&DEC2HEX(CODE(G166))&\", \")","v":"0x6D, "},{"$f":"IF(ISERR(CODE(H166)),\"\",\"0x\"&DEC2HEX(CODE(H166))&\", \")","v":""},{"$f":"IF(ISERR(CODE(I166)),\"\",\"0x\"&DEC2HEX(CODE(I166))&\", \")","v":""},{"$f":"IF(ISERR(CODE(J166)),\"\",\"0x\"&DEC2HEX(CODE(J166))&\", \")","v":""}]
[null,17,"","","","","","","","",null,null,"","","","","","","",""]
[null,null,"","","","","","","","",null,null,"","","","","","","",""]
[null,null,"","","","","","","","",null,null,"","","","","","","",""]
[null,null,"","","","","","","","",null,null,"","","","","","","",""]
[null,null,"","","","","","","","",null,null,"","","","","","","",""]
[null,null,"","","","","","","","",null,null,"","","","","","","",""]
[null,null,"","","","","","","","",null,null,"","","","","","","",""]
[null,null,"","","","","","","","",null,null,"","","","","","","",""]
[null,null,"","","","","","","","",null,null,"","","","","","","",""]
[null,null,"","","","","","","","",null,null,"","","","","","","",""]
[null,null,"","","","","","","","",null,null,"","","","","","","",""]
[null,null,"","","","","","","","",null,null,"","","","","","","",""]
[null,null,"","","","","","","","",null,null,"","","","","","","",""]
[null,null,"","","","","","","","",null,null,"","","","","","","",""]
[]
[null,"deffile list",null,"On","Off",null,"deffile",{"$f":"F27","v":"On"}]
[]
[]
[null,null,"Count Payload Length"]
[null,null,null,"URI TYPE",null,1]
[null,null,null,"AppData",null,{"$f":"COUNTA(M165:T180)-COUNTIF(M165:T180,\"\")","v":13}]
[null,null,null,"total length",null,{"$f":"SUM(F186:F187)","v":14},null,null,null,null,null,{"$f":"\"0x\"&DEC2HEX(F188,2)&\",\"","v":"0x0E,"}]
[]
[null,null,"Count NDEF length"]
[null,null,null,"Header length",null,1]
[null,null,null,"Type length length",null,1]
[null,null,null,"Payload length length",null,1]
[null,null,null,"Record type length",null,1]
[null,null,null,"Payload",null,{"$f":"F188","v":14}]
[null,null,null,"total length",null,{"$f":"SUM(F191:F195)","v":18},null,null,null,null,null,{"$f":"\"0x\"&DEC2HEX(F196,2)&\",\"","v":"0x12,"}]
[]
[]
[null,"文末",{"$f":"IF(H182=\"On\",\"    \\\",\"\")","v":"    \\"}]
[]
[]
[]
[null,null,"Protocol","Hex"]
[null,null,{"$f":"\"No abbreviation\"","v":"No abbreviation"},"0x00"]
[null,null,"http://www.","0x01"]
[null,null,"https://www.","0x02"]
[null,null,"http://","0x03"]
[null,null,"htps://","0x04"]
[null,null,"tel:","0x05"]
[null,null,"mailto:","0x06"]
[null,null,"ftp://anonymous:anonymous@","0x07"]
[null,null,"ftp://ftp.","0x08"]
[null,null,"ftps://","0x09"]
[null,null,"sftp://","0x0A"]
[null,null,"smb://","0x0B"]
[null,null,"nfs://","0x0C"]
[null,null,"ftp://","0x0D"]
[null,null,"dav://","0x0E"]
[null,null,"news://","0x0F"]
[null,null,"telnet://","0x10"]
[null,null,"imap:","0x11"]
[null,null,"rtsp://","0x12"]
[null,null,"urn:","0x13"]
[null,null,"pop:","0x14"]
[null,null,"sip:","0x15"]
[null,null,"sips:","0x16"]
[null,null,"tftp:","0x17"]
[null,null,"btspp://","0x18"]
[null,null,"btl2cap://","0x19"]
[null,null,"btgoep://","0x1A"]
[null,null,"tcpobex://","0x1B"]
[null,null,"irdaobex://","0x1C"]
[null,null,"file://","0x1D"]
[null,null,"urn:epc:id:","0x1E"]
[null,null,"urn:epc:tag:","0x1F"]
[null,null,"urn:epc:pat:","0x20"]
[null,null,"urn:epc:raw:","0x21"]
[null,null,"urn:epc:","0x22"]
[null,null,"urn:nfc:","0x23"]
[null,null,"RFU","0x24-0xFF"]

{"sheet":"Bluetooth","index":3,"n_rows":560,"n_cols":28,"rows_kept":560,"cut":false,"hidden":false,"merged":[[17,3,17,7],[29,6,29,8],[32,6,32,8],[35,6,35,8],[51,6,51,8],[47,6,47,8],[254,5,254,8],[55,6,55,8],[55,10,55,11],[37,6,37,8],[63,6,63,8],[125,7,125,9],[67,6,68,11],[47,10,47,11],[51,10,51,11]]}
["Bluetooth"]
[]
[]
[null,null,"NDEF data for Bluetooth connection Handover application would be created."]
[null,null,"This data will be made in accordance with Bluetooth Out-of-Band format."]
[]
[null,null,"1. Input Device Address."]
[]
[null,null,"0x04",":","0x88",":","0xe2",":","0x10",":","0x10",":","0x1f"]
[]
[null,null,null,"Note: Please make sure to input Hex 0x00-0xFF in this form. "]
[]
[null,null,"2. Input Bluetooth Local Name."]
[]
[null,null,null,"2.1 If you add Local Name, please set the right column 'Yes'.",null,null,null,null,null,null,null,null,"Yes"]
[]
[null,null,null,"2.2 If you select 'Yes' at 2.1, please input Local Name."]
[null,null,null,"Beats Pill XL"]
[]
[null,null,null,"Note: Up to 32 characters can be input for Local Name field."]
[null,null,null,"Please adjust the length of the Local Name as required."]
[]
[null,null,"3. Input Class of Device."]
[]
[null,null,null,"3.1 If you add Class of Device, please set the right column 'Yes'.",null,null,null,null,null,null,null,null,"No"]
[]
[null,null,null,"3.1 If you select 'Yes' at 3.1, please set Service class, Major Device class"]
[null,null,null,"and Minor Device class."]
[]
[null,null,null,"Service class",null,null,"Audio",null,null,null,{"$f":"VLOOKUP(G30, C354:D362,2,FALSE)","v":"0x20"}]
[null,null,null,null,null,null,{"$f":"\"( \"&VLOOKUP(G30, C354:E362,3,FALSE)&\" )\"","v":"( Speaker, Microphone, Headset service, ... )"}]
[]
[null,null,null,"Major Device class",null,null,"Audio/Video",null,null,null,{"$f":"VLOOKUP(G33,C367:D374,2,FALSE)","v":"0x04"}]
[null,null,null,null,null,null,{"$f":"\"( \"&VLOOKUP(G33, C367:G374,5,FALSE)&\" )\"","v":"( headset, speaker, stereo, video display, vcr, ... )"}]
[]
[null,null,null,"Minor Device class",null,null,"Headset",null,null,null,{"$f":"M386","v":"0x04"}]
[]
[null,null,null,null,"2nd Area",null,"-",null,null,null,{"$f":"M395","v":"0x00"},null,{"$f":"\"0x\"&DEC2HEX(HEX2DEC(MID(K36,3,2))+HEX2DEC(MID(K38,3,2)),2)","v":"0x04"}]
[]
[null,null,null,null,"Note: If minor device class has 2nd area, please set 2nd area."]
[null,null,null,null,"If you change upper class, please re-select lower class."]
[]
[null,null,"4. Input Service Class UUID"]
[]
[null,null,null,"4.1 If necessary, select number of UUID from 0/1/2/3.",null,null,null,null,null,null,null,null,0]
[]
[null,null,null,"4.2 If you select one or more in 4.1, please input UUID-1."]
[null,null,null,null,"UUID-1",null,"Handsfree",null,null,null,{"$f":"VLOOKUP(G48,D469:E537,2,FALSE)","v":"0x111E"}]
[null,null,null,null,null,null,{"$f":"\"( \"&VLOOKUP(G48, D469:F537,3,FALSE)&\" )\"","v":"( Basic Imaging Profile (BIP) )"}]
[]
[null,null,null,"4.3 If you select two or more in 4.2, please input UUID-2."]
[null,null,null,null,"UUID-2",null,"AudioSink",null,null,null,{"$f":"VLOOKUP(G52,D469:E537,2,FALSE)","v":"0x110B"}]
[null,null,null,null,null,null,{"$f":"\"( \"&VLOOKUP(G52, D469:F537,3,FALSE)&\" )\"","v":"( Advanced Audio Distribution Profile (A2DP) )"}]
[]
[null,null,null,"4.4 If you select three in 4.2, please input UUID-3."]
[null,null,null,null,"UUID-3",null,"-",null,null,null,{"$f":"VLOOKUP(G56,D469:E537,2,FALSE)","v":"0x0000"}]
[null,null,null,null,null,null,{"$f":"\"( \"&VLOOKUP(G56, D469:F537,3,FALSE)&\" )\"","v":"( - )"}]
[]
[null,null,"5. Add extra option"]
[]
[null,null,null,"5.1 If you add extra option, please set 'Add Ex EIR Data' is 'Yes'"]
[null,null,null,"Add Ex EIR Data",null,null,"No"]
[]
[null,null,null,"EIR Data Type",null,null,"Manufacturer Specific Data",null,null,null,{"$f":"VLOOKUP(G64, D556:E560,2,FALSE)","v":"0xFF"}]
[]
[null,null,null,"Data Type",null,null,"Text"]
[]
[null,null,null,"Optional Data Text"]
[]
[]
[null,null,null,"Optional Data HEX"]
[]
[]
[]
[]
[null,null,null,"Note: Up to 32 characters can be input for text and hex field."]
[null,null,null,"Please adjust the length of the data as required."]
[null,null,null,"Please input 'Data Text' or 'Data HEX' based on your select."]
[null,null,null,"If you select 'hex' type, please make sure to input Hex 0x00-0xFF in this form. "]
[null,null,null,"Please make sure to remove unnecessary data."]
[]
[null,null,"6. Create the output file."]
[]
[]
[]
[null,null,null,"Use Def file",null,"On"]
[]
[null,null,null,"Name the output file by utilizing the output form."]
[]
[null,null,null,"If 'define' is utilized, please set Use Def file 'On.'"]
[null,null,null,"'/' is added automatically."]
[null,null,null,"Please confirm, output file is closed. If it opened, "]
[]
[]
[]
[]
[null,"Out File Data detail."]
[]
[null,null,null,null,null,null,null,null,null,null,null,"#define RF430_APP_DATA {",null,null,null,null,null,null,null,{"$f":"L99&$C$348","v":"#define RF430_APP_DATA {    \\"}]
[null,"NDEF Tag Application",null,null,null,null,null,null,null,null,null,"/*NDEF Tag Application */",null,null,null,null,null,null,null,{"$f":"C100&D100&E100&F100&G100&H100&I100&J100&\"    \"&L100&$C$348","v":"    /*NDEF Tag Application */    \\"}]
[null,null,"0xD2, ","0x76, ","0x00, ","0x00, ","0x85, ","0x01, ","0x01, ",null,null,null,null,null,null,null,null,null,null,{"$f":"\"    \"&C101&D101&E101&F101&G101&H101&I101&\"    \"&L101&$C$348","v":"    0xD2, 0x76, 0x00, 0x00, 0x85, 0x01, 0x01,         \\"}]
[null,null,null,null,null,null,null,null,null,null,null,null,null,null,null,null,null,null,null,{"$f":"\"    \"&C102&D102&E102&F102&G102&H102&I102&J102&\"    \"&L102&$C$348","v":"            \\"}]
[null,"CC file ID"]
[null,null,"0xE1, ","0x03, ",null,null,null,null,null,null,null,"/*Capability Container ID*/ ",null,null,null,null,null,null,null,{"$f":"\"    \"&C104&D104&E104&F104&G104&H104&I104&J104&\"    \"&L104&$C$348","v":"    0xE1, 0x03,     /*Capability Container ID*/     \\"}]
[null,null,null,null,null,null,null,null,null,null,null,null,null,null,null,null,null,null,null,{"$f":"\"    \"&\"    \"&$C$348","v":"            \\"}]
[null,"CC file",null,null,null,null,null,null,null,null,null,"/* CC file start */",null,null,null,null,null,null,null,{"$f":"C106&D106&E106&F106&G106&H106&I106&J106&\"    \"&L106&$C$348","v":"    /* CC file start */    \\"}]
[null,null,"0x00, ","0x0F, ",null,null,null,null,null,null,null,"/* CCLEN 15bytes fix*/",null,null,null,null,null,null,null,{"$f":"\"    \"&C107&D107&E107&F107&G107&H107&I107&J107&\"    \"&L107&$C$348","v":"    0x00, 0x0F,     /* CCLEN 15bytes fix*/    \\"}]
[null,null,"0x20, ",null,null,null,null,null,null,null,null,"/* Mapping version 2.0 */",null,null,null,null,null,null,null,"    0x20,     /* Mapping version 2.0 */    \\"]
[null,null,"0x00, ","0xF9,",null,null,null,null,null,null,null,"/* MLe (49 bytes); Maximum R-APDU data size */",null,null,null,null,null,null,null,"    0x00, 0xF9,    /* MLe (49 bytes); Maximum R-APDU data size */    \\"]
[null,null,"0x00, ","0xF6, ",null,null,null,null,null,null,null,"/* MLc (52 bytes); Maximum C-APDU data size */",null,null,null,null,null,null,null,"    0x00, 0xF6,     /* MLc (52 bytes); Maximum C-APDU data size */    \\"]
[null,"T field","0x04, ",null,null,null,null,null,null,null,null,"/* Tag, File Control TLV (4 = NDEF file) */",null,null,null,null,null,null,null,"    0x04,     /* Tag, File Control TLV (4 = NDEF file) */    \\"]
[null,"L field","0x06, ",null,null,null,null,null,null,null,null,"/* Length, File Control TLV (6 = 6 bytes of data for this tag) */",null,null,null,null,null,null,null,"    0x06,     /* Length, File Control TLV (6 = 6 bytes of data for this tag) */    \\"]
[null,"V field","0xE1, ","0x04, ",null,null,null,null,null,null,null,"/* Type4 Tag File Identifier */",null,null,null,null,null,null,null,"    0xE1, 0x04,     /* Type4 Tag File Identifier */    \\"]
[null,null,"0x0B, ","0xDF, ",null,null,null,null,null,null,null,"/* Max NDEF size (3037 bytes of RF430CL330 useable memory) */",null,null,null,null,null,null,null,"    0x0B, 0xDF,     /* Max NDEF size (3037 bytes of RF430CL330 useable memory) */    \\"]
[null,null,"0x00, ",null,null,null,null,null,null,null,null,"/* NDEF file read access condition, read access without any security */",null,null,null,null,null,null,null,"    0x00,     /* NDEF file read access condition, read access without any security */    \\"]
[null,null,"0x00, ",null,null,null,null,null,null,null,null,"/* NDEF file write access condition; write access without any security */",null,null,null,null,null,null,null,"    0x00,     /* NDEF file write access condition; write access without any security */    \\"]
[null,null,null,null,null,null,null,null,null,null,null,"/* CC file end */",null,null,null,null,null,null,null,{"$f":"C117&D117&E117&F117&G117&H117&I117&J117&\"    \"&L117&$C$348","v":"    /* CC file end */    \\"}]
[null,"NDEF file ID",null,null,null,null,null,null,null,null,null,null,null,null,null,null,null,null,null,{"$f":"\"    \"&\"    \"&$C$348","v":"            \\"}]
[null,null,"0xE1, ","0x04, ",null,null,null,null,null,null,null,"/* NDEF File ID */ ",null,null,null,null,null,null,null,{"$f":"\"    \"&C119&D119&E119&F119&G119&H119&I119&J119&\"    \"&L119&$C$348","v":"    0xE1, 0x04,     /* NDEF File ID */     \\"}]
[null,null,null,null,null,null,null,null,null,null,null,null,null,null,null,null,null,null,null,{"$f":"\"    \"&\"    \"&$C$348","v":"            \\"}]
[null,"NLEN"]
[null,null,"0x00, ",{"$f":"$H$345","v":"0x3C, "},null,null,null,null,null,null,null,{"$f":"\"/* NDEF Length \"&F346&\"bytes */\"","v":"/* NDEF Length bytes */"},null,null,null,null,null,null,null,{"$f":"\"    \"&C122&D122&E122&F122&G122&H122&I122&J122&\"    \"&L122&$C$348","v":"    0x00, 0x3C,     /* NDEF Length bytes */    \\"}]
[null,null,null,null,null,null,null,null,null,null,null,null,null,null,null,null,null,null,null,{"$f":"\"    \"&\"    \"&$C$348","v":"            \\"}]
[null,"NDEF",null,null,null,null,null,null,null,null,null,"/* NDEF start */",null,null,null,null,null,null,null,{"$f":"C124&D124&E124&F124&G124&H124&I124&J124&\"    \"&L124&$C$348","v":"    /* NDEF start */    \\"}]
[null,"Header","0xDA,",null,null,null,null,null,null,null,null,"/* NDEF Header MB=1, ME=1, CF=0, SR=1, IL=1, TNF=2 */",null,null,null,null,null,null,null,{"$f":"\"    \"&C125&D125&E125&F125&G125&H125&I125&J125&\"    \"&L125&$C$348","v":"    0xDA,    /* NDEF Header MB=1, ME=1, CF=0, SR=1, IL=1, TNF=2 */    \\"}]
[null,null,"MB","ME","CF","SR","IL","TNF",null,null,null,null,null,null,null,null,null,null,null,{"$f":"\"    \"&\"    \"&$C$348","v":"            \\"}]
[null,null,1,1,0,1,1,0,1,0]
[null,"Type Length"]
[null,null,"0x20,",null,null,null,null,null,null,null,null,"/* Type Length 1 byte */",null,null,null,null,null,null,null,{"$f":"\"    \"&C129&D129&E129&F129&G129&H129&I129&J129&\"    \"&L129&$C$348","v":"    0x20,    /* Type Length 1 byte */    \\"}]
[null,"Payload Length",null,null,null,null,null,null,null,null,null,null,null,null,null,null,null,null,null,{"$f":"\"    \"&\"    \"&$C$348","v":"            \\"}]
[null,null,{"$f":"$H$334","v":"0x17, "},null,null,null,null,null,null,null,null,{"$f":"\"/* Payload length \"&F336&\"bytes */\"","v":"/* Payload length bytes */"},null,null,null,null,null,null,null,{"$f":"\"    \"&C131&D131&E131&F131&G131&H131&I131&J131&\"    \"&L131&$C$348","v":"    0x17,     /* Payload length bytes */    \\"}]
[null,"ID Length",null,null,null,null,null,null,null,null,null,null,null,null,null,null,null,null,null,{"$f":"\"    \"&C132&D132&E132&F132&G132&H132&I132&J132&\"    \"&L132&$C$348","v":"            \\"}]
[null,null,"0x01, ",null,null,null,null,null,null,null,null,{"$f":"\"/* ID length 1byte */\"","v":"/* ID length 1byte */"},null,null,null,null,null,null,null,{"$f":"\"    \"&C133&D133&E133&F133&G133&H133&I133&J133&\"    \"&L133&$C$348","v":"    0x01,     /* ID length 1byte */    \\"}]
[null,"Record Type: application/vnd.bluetooth.ep.oob",null,null,null,null,null,null,null,null,null,"/* Type Name: application/vnd.bluetooth.ep.oob */",null,null,null,null,null,null,null,{"$f":"C134&D134&E134&F134&G134&H134&I134&J134&\"    \"&L134&$C$348","v":"    /* Type Name: application/vnd.bluetooth.ep.oob */    \\"}]
[null,null,{"$f":"L263","v":"0x61, "},"0x70, ","0x70, ","0x6C, ","0x69, ","0x63, ","0x61, ","0x74, ",null,null,null,null,null,null,null,null,null,{"$f":"\"    \"&C135&D135&E135&F135&G135&H135&I135&J135&\"    \"&L135&$C$348","v":"    0x61, 0x70, 0x70, 0x6C, 0x69, 0x63, 0x61, 0x74,         \\"}]
[null,null,"0x69, ","0x6F, ","0x6E, ","0x2F, ","0x76, ","0x6E, ","0x64, ","0x2E, ",null,null,null,null,null,null,null,null,null,"    0x69, 0x6F, 0x6E, 0x2F, 0x76, 0x6E, 0x64, 0x2E,         \\"]
[null,null,"0x62, ","0x6C, ","0x75, ","0x65, ","0x74, ","0x6F, ","0x6F, ","0x74, ",null,null,null,null,null,null,null,null,null,"    0x62, 0x6C, 0x75, 0x65, 0x74, 0x6F, 0x6F, 0x74,         \\"]
[null,null,"0x68, ","0x2E, ","0x65, ","0x70, ","0x2E, ","0x6F, ","0x6F, ","0x62, ",null,null,null,null,null,null,null,null,null,"    0x68, 0x2E, 0x65, 0x70, 0x2E, 0x6F, 0x6F, 0x62,         \\"]
[null,"ID",null,null,null,null,null,null,null,null,null,null,null,null,null,null,null,null,null,"            \\"]
[null,null,"0x01, ",null,null,null,null,null,null,null,null,{"$f":"\"/* ID : 0x01 */\"","v":"/* ID : 0x01 */"},null,null,null,null,null,null,null,"    0x01,     /* ID : 0x01 */    \\"]
[null,null,null,null,null,null,null,null,null,null,null,null,null,null,null,null,null,null,null,"            \\"]
[null,"Payload",null,null,null,null,null,null,null,null,null,"/* Payload start */",null,null,null,null,null,null,null,{"$f":"C142&D142&E142&F142&G142&H142&I142&J142&\"    \"&L142&$C$348","v":"    /* Payload start */    \\"}]
[null,"Bluetooth OOB Data Length",null,null,null,null,null,null,null,null,null,"/* Bluetooth OOB Data */",null,null,null,null,null,null,null,{"$f":"C143&D143&E143&F143&G143&H143&I143&J143&\"    \"&L143&$C$348","v":"    /* Bluetooth OOB Data */    \\"}]
[null,null,{"$f":"$H$330","v":"0x17, "},"0x00,",null,null,null,null,null,null,null,"/* OOB Data Length */",null,null,null,null,null,null,null,{"$f":"\"    \"&C144&D144&E144&F144&G144&H144&I144&J144&\"    \"&L144&$C$348","v":"    0x17, 0x00,    /* OOB Data Length */    \\"}]
[null,"Device Address",null,null,null,null,null,null,null,null,null,null,null,null,null,null,null,null,null,{"$f":"\"    \"&\"    \"&$C$348","v":"            \\"}]
[null,null,{"$f":"C255&\", \"","v":"0x1f, "},{"$f":"C254&\", \"","v":"0x10, "},{"$f":"C253&\", \"","v":"0x10, "},{"$f":"C252&\", \"","v":"0xe2, "},{"$f":"C251&\", \"","v":"0x88, "},{"$f":"C250&\", \"","v":"0x04, "},null,null,null,{"$f":"\"/* Device Address \"&F254&\" */\"","v":"/* Device Address 04:88:e2:10:10:1f */"},null,null,null,null,null,null,null,{"$f":"\"    \"&C146&D146&E146&F146&G146&H146&I146&J146&\"    \"&L146&$C$348","v":"    0x1f, 0x10, 0x10, 0xe2, 0x88, 0x04,     /* Device Address 04:88:e2:10:10:1f */    \\"}]
[null,"Local Name Field",null,null,null,null,null,null,null,null,null,null,null,null,null,null,null,null,null,{"$f":"\"    \"&\"    \"&$C$348","v":"            \\"}]
[null,"Local Name Field Length",null,null,null,null,null,null,null,null,null,{"$f":"IF(M15=\"Yes\",\"/* Local Name Field Start */\",\"\")","v":"/* Local Name Field Start */"},null,null,null,null,null,null,null,{"$f":"C148&D148&E148&F148&G148&H148&I148&J148&\"    \"&L148&$C$348","v":"    /* Local Name Field Start */    \\"}]
[null,null,{"$f":"$I$274","v":"0x0E, "},null,null,null,null,null,null,null,null,{"$f":"IF(M15=\"Yes\",\"/* Local Name Length: \"&E274&\"bytes plus Data Type 1byte */\",\"\")","v":"/* Local Name Length: 13bytes plus Data Type 1byte */"},null,null,null,null,null,null,null,{"$f":"\"    \"&C149&D149&E149&F149&G149&H149&I149&J149&\"    \"&L149&$C$348","v":"    0x0E,     /* Local Name Length: 13bytes plus Data Type 1byte */    \\"}]
[null,"Local Name EIR Data Type",null,null,null,null,null,null,null,null,null,null,null,null,null,null,null,null,null,"            \\"]
[null,null,{"$f":"$O$274","v":"0x09, "},null,null,null,null,null,null,null,null,{"$f":"IF(M15=\"Yes\",\"/* EIR Data Type: Local Name 0x09 */\",\"\")","v":"/* EIR Data Type: Local Name 0x09 */"},null,null,null,null,null,null,null,"    0x09,     /* EIR Data Type: Local Name 0x09 */    \\"]
[null,"Local Name",null,null,null,null,null,null,null,null,null,{"$f":"IF(M15=\"Yes\",\"/* Local Name \"&C268&\" */\",\"\")","v":"/* Local Name Beats Pill XL */"},null,null,null,null,null,null,null,"        /* Local Name Beats Pill XL */    \\"]
[null,null,{"$f":"U269","v":"0x42, "},"0x65, ","0x61, ","0x74, ","0x73, ","0x20, ","0x50, ","0x69, ",null,null,null,null,null,null,null,null,null,"    0x42, 0x65, 0x61, 0x74, 0x73, 0x20, 0x50, 0x69,         \\"]
[null,null,"0x6C, ","0x6C, ","0x20, ","0x58, ","0x4C, ","","","",null,null,null,null,null,null,null,null,null,"    0x6C, 0x6C, 0x20, 0x58, 0x4C,         \\"]
[null,null,"","","","","","","","",null,null,null,null,null,null,null,null,null,"            \\"]
[null,null,"","","","","","","","",null,null,null,null,null,null,null,null,null,"            \\"]
[null,"Class of Device Field",null,null,null,null,null,null,null,null,null,null,null,null,null,null,null,null,null,"            \\"]
[null,"Class of Device Field Length",null,null,null,null,null,null,null,null,null,{"$f":"IF(M25=\"Yes\",\"/* Class of Device Field Start */\",\"\")","v":""},null,null,null,null,null,null,null,{"$f":"C158&D158&E158&F158&G158&H158&I158&J158&\"    \"&L158&$C$348","v":"        \\"}]
[null,null,{"$f":"$G$283","v":""},null,null,null,null,null,null,null,null,{"$f":"IF(M25=\"Yes\",\"/* Class of Device Length 3bytes plus Data Type 1byte */\",\"\")","v":""},null,null,null,null,null,null,null,{"$f":"\"    \"&C159&D159&E159&F159&G159&H159&I159&J159&\"    \"&L159&$C$348","v":"            \\"}]
[null,"Class of Device EIR Data Type",null,null,null,null,null,null,null,null,null,null,null,null,null,null,null,null,null,{"$f":"\"    \"&C160&D160&E160&F160&G160&H160&I160&J160&\"    \"&L160&$C$348","v":"            \\"}]
[null,null,{"$f":"$G$285","v":""},null,null,null,null,null,null,null,null,{"$f":"IF(M25=\"Yes\",\"/* EIR Data Type : Class of Device 0x0D */\",\"\")","v":""},null,null,null,null,null,null,null,{"$f":"\"    \"&C161&D161&E161&F161&G161&H161&I161&J161&\"    \"&L161&$C$348","v":"            \\"}]
[null,"Class of Device",null,null,null,null,null,null,null,null,null,{"$f":"IF(M25=\"Yes\",\"/* Class of Device, Service Class : \"&G30&\" */\",\"\")","v":""},null,null,null,null,null,null,null,{"$f":"C162&D162&E162&F162&G162&H162&I162&J162&\"    \"&L162&$C$348","v":"        \\"}]
[null,null,null,null,null,null,null,null,null,null,null,{"$f":"IF(M25=\"Yes\",\"/* Major Class : \"&G33&\" */\",\"\")","v":""},null,null,null,null,null,null,null,{"$f":"C163&D163&E163&F163&G163&H163&I163&J163&\"    \"&L163&$C$348","v":"        \\"}]
[null,null,null,null,null,null,null,null,null,null,null,{"$f":"IF(M25=\"Yes\",\"/* Mainor Class : \"&G36&\" */\",\"\")","v":""},null,null,null,null,null,null,null,{"$f":"C164&D164&E164&F164&G164&H164&I164&J164&\"    \"&L164&$C$348","v":"        \\"}]
[null,null,{"$f":"G281","v":""},"","",null,null,null,null,null,null,null,null,null,null,null,null,null,null,{"$f":"\"    \"&C165&D165&E165&F165&G165&H165&I165&J165&\"    \"&L165&$C$348","v":"            \\"}]
[null,"UUID Field",null,null,null,null,null,null,null,null,null,null,null,null,null,null,null,null,null,{"$f":"\"    \"&C166&D166&E166&F166&G166&H166&I166&J166&\"    \"&L166&$C$348","v":"            \\"}]
[null,"UUID Field Length",null,null,null,null,null,null,null,null,null,{"$f":"IF(M45>0,\"/* UUID Field Start */\",\"\")","v":""},null,null,null,null,null,null,null,{"$f":"C167&D167&E167&F167&G167&H167&I167&J167&\"    \"&L167&$C$348","v":"        \\"}]
[null,null,{"$f":"$G$290","v":""},null,null,null,null,null,null,null,null,{"$f":"IF(M45>0,\"/* UUID Field Length \"&E290&\"bytes */\",\"\")","v":""},null,null,null,null,null,null,null,{"$f":"\"    \"&C168&D168&E168&F168&G168&H168&I168&J168&\"    \"&L168&$C$348","v":"            \\"}]
[null,"UUID Field EIR Data Type",null,null,null,null,null,null,null,null,null,null,null,null,null,null,null,null,null,"            \\"]
[null,null,{"$f":"$E$292","v":""},null,null,null,null,null,null,null,null,{"$f":"IF(M45>0,\"/* UUID Field EIR Type 0x03 */\",\"\")","v":""},null,null,null,null,null,null,null,"            \\"]
[null,"UUID FIeld 1",null,null,null,null,null,null,null,null,null,null,null,null,null,null,null,null,null,"            \\"]
[null,null,{"$f":"H295","v":""},"",null,null,null,null,null,null,null,{"$f":"IF(M45>0,\"/* UUID 1 \"&G48&\" */\",\"\")","v":""},null,null,null,null,null,null,null,"            \\"]
[null,"UUID Field 2",null,null,null,null,null,null,null,null,null,null,null,null,null,null,null,null,null,"            \\"]
[null,null,{"$f":"H296","v":""},"",null,null,null,null,null,null,null,{"$f":"IF(M45>1,\"/* UUID 2 \"&G52&\" */\",\"\")","v":""},null,null,null,null,null,null,null,"            \\"]
[null,"UUID Field 3",null,null,null,null,null,null,null,null,null,null,null,null,null,null,null,null,null,"            \\"]
[null,null,{"$f":"H297","v":""},"",null,null,null,null,null,null,null,{"$f":"IF(M45>2,\"/* UUID 3 \"&G56&\" */\",\"\")","v":""}]
[null,"Add Ex EIR Data Field"]
[null,"EIR Data Length",null,null,null,null,null,null,null,null,null,{"$f":"IF(G62=\"Yes\",\"/* Extra EIR Data Field Start */\",\"\")","v":""},null,null,null,null,null,null,null,{"$f":"C178&D178&E178&F178&G178&H178&I178&J178&\"    \"&L178&$C$348","v":"        \\"}]
[null,null,{"$f":"$G$318","v":""},null,null,null,null,null,null,null,null,{"$f":"IF(G62=\"Yes\",\"/* Extra EIR Data Field Length \"&C318&\"bytes */\",\"\")","v":""},null,null,null,null,null,null,null,{"$f":"\"    \"&C179&D179&E179&F179&G179&H179&I179&J179&\"    \"&L179&$C$348","v":"            \\"}]
[null,"EIR Data Type",null,null,null,null,null,null,null,null,null,null,null,null,null,null,null,null,null,{"$f":"\"    \"&C180&D180&E180&F180&G180&H180&I180&J180&\"    \"&L180&$C$348","v":"            \\"}]
[null,null,{"$f":"$E$304","v":""},null,null,null,null,null,null,null,null,{"$f":"IF(G62=\"Yes\",\"/* Extra EIR Data Type: \"&G64&\" */\",\"\")","v":""},null,null,null,null,null,null,null,{"$f":"\"    \"&C181&D181&E181&F181&G181&H181&I181&J181&\"    \"&L181&$C$348","v":"            \\"}]
[null,"EIR Data",null,null,null,null,null,null,null,null,null,{"$f":"IF(G62=\"Yes\",\"/* Extra EIR Data: */\",\"\")","v":""},null,null,null,null,null,null,null,{"$f":"C182&D182&E182&F182&G182&H182&I182&J182&\"    \"&L182&$C$348","v":"        \\"}]
[null,null,{"$f":"U313","v":""},"","","","","","","",null,null,null,null,null,null,null,null,null,{"$f":"\"    \"&C183&D183&E183&F183&G183&H183&I183&J183&\"    \"&L183&$C$348","v":"            \\"}]
[null,null,"","","","","","","","",null,null,null,null,null,null,null,null,null,{"$f":"\"    \"&C184&D184&E184&F184&G184&H184&I184&J184&\"    \"&L184&$C$348","v":"            \\"}]
[null,null,"","","","","","","","",null,null,null,null,null,null,null,null,null,{"$f":"\"    \"&C185&D185&E185&F185&G185&H185&I185&J185&\"    \"&L185&$C$348","v":"            \\"}]
[null,null,"","","","","","","","",null,null,null,null,null,null,null,null,null,{"$f":"\"    \"&C186&D186&E186&F186&G186&H186&I186&J186&\"    \"&L186&$C$348","v":"            \\"}]
[null,null,null,null,null,null,null,null,null,null,null,"} /* End of data */",null,null,null,null,null,null,null,{"$f":"C187&D187&E187&F187&G187&H187&I187&J187&L187","v":"} /* End of data */"}]
[]
[]
[]
[]
[]
[]
[]
[]
[]
[]
[]
[]
[]
[]
[]
[]
[]
[]
[]
[]
[]
[]
[]
[]
[]
[]
[]
[]
[]
[]
[]
[]
[]
[]
[]
[]
[]
[]
[]
[]
[]
[]
[]
[]
[]
[]
[]
[]
[null,"Input resorber"]
[null,"Num",1,2,3,4,5,6,7,8]
[null,null,9,10,11,12,13,14,15,16]
[null,null,17,18,19,20,21,22,23,24]
[null,null,25,26,27,28,29,30,31,32]
[null,null,33,34,35,36,37,38,39,40]
[null,null,41,42,43,44,45,46,47,48]
[null,null,49,50,51,52,53,54,55,56]
[null,null,57,58,59,60,61,62,63,64]
[]
[null,null,"application/vnd.bluetooth.ep.oob"]
[]
[null,"1. Device Address"]
[null,null,"Device Address"]
[null,"MSB",{"$f":"C9","v":"0x04"},{"$f":"MID(C250,3,2)","v":"04"}]
[null,null,{"$f":"E9","v":"0x88"},"88"]
[null,null,{"$f":"G9","v":"0xe2"},"e2"]
[null,null,{"$f":"I9","v":"0x10"},"10"]
[null,null,{"$f":"K9","v":"0x10"},"10",null,{"$f":"D250&\":\"&D251&\":\"&D252&\":\"&D253&\":\"&D254&\":\"&D255","v":"04:88:e2:10:10:1f"}]
[null,"LSB",{"$f":"M9","v":"0x1f"},"1f",null,{"$f":"C255&\", \"&C254&\", \"&C253&\", \"&C252&\", \"&C251&\", \"&C250&\", \"","v":"0x1f, 0x10, 0x10, 0xe2, 0x88, 0x04, "}]
[]
[null,"2. Local Name"]
[null,"Add Local Name"]
[null,null,"Yes","No",{"$f":"M15","v":"Yes"}]
[]
[]
[null,"BT Type","application/vnd.bluetooth.ep.oob"]
[null,null,{"$f":"MID($C$262,C237,1)","v":"a"},"p","p","l","i","c","a","t",null,{"$f":"IF(ISERR(CODE(C263)),\"\",\"0x\"&DEC2HEX(CODE(C263))&\", \")","v":"0x61, "},{"$f":"IF(ISERR(CODE(D263)),\"\",\"0x\"&DEC2HEX(CODE(D263))&\", \")","v":"0x70, "},{"$f":"IF(ISERR(CODE(E263)),\"\",\"0x\"&DEC2HEX(CODE(E263))&\", \")","v":"0x70, "},{"$f":"IF(ISERR(CODE(F263)),\"\",\"0x\"&DEC2HEX(CODE(F263))&\", \")","v":"0x6C, "},{"$f":"IF(ISERR(CODE(G263)),\"\",\"0x\"&DEC2HEX(CODE(G263))&\", \")","v":"0x69, "},{"$f":"IF(ISERR(CODE(H263)),\"\",\"0x\"&DEC2HEX(CODE(H263))&\", \")","v":"0x63, "},{"$f":"IF(ISERR(CODE(I263)),\"\",\"0x\"&DEC2HEX(CODE(I263))&\", \")","v":"0x61, "},{"$f":"IF(ISERR(CODE(J263)),\"\",\"0x\"&DEC2HEX(CODE(J263))&\", \")","v":"0x74, "}]
[null,null,"i","o","n","/","v","n","d",".",null,{"$f":"IF(ISERR(CODE(C264)),\"\",\"0x\"&DEC2HEX(CODE(C264))&\", \")","v":"0x69, "},"0x6F, ","0x6E, ","0x2F, ","0x76, ","0x6E, ","0x64, ","0x2E, "]
[null,null,"b","l","u","e","t","o","o","t",null,"0x62, ","0x6C, ","0x75, ","0x65, ","0x74, ","0x6F, ","0x6F, ","0x74, "]
[null,null,"h",".","e","p",".","o","o","b",null,{"$f":"IF(ISERR(CODE(C266)),\"\",\"0x\"&DEC2HEX(CODE(C266))&\", \")","v":"0x68, "},"0x2E, ","0x65, ","0x70, ","0x2E, ","0x6F, ","0x6F, ",{"$f":"IF(ISERR(CODE(J266)),\"\",\"0x\"&DEC2HEX(CODE(J266))&\", \")","v":"0x62, "}]
[null,"Local Name"]
[null,null,{"$f":"D18","v":"Beats Pill XL"},null,null,null,null,null,null,null,null,null,null,null,null,null,null,null,null,null,"If Yes/No"]
[null,null,{"$f":"MID($C$268,C237,1)","v":"B"},"e","a","t","s"," ","P","i",null,{"$f":"IF(ISERR(CODE(C269)),\"\",\"0x\"&DEC2HEX(CODE(C269))&\", \")","v":"0x42, "},{"$f":"IF(ISERR(CODE(D269)),\"\",\"0x\"&DEC2HEX(CODE(D269))&\", \")","v":"0x65, "},"0x61, ","0x74, ","0x73, ","0x20, ","0x50, ","0x69, ",null,{"$f":"IF($E$259=\"Yes\",L269,\"\")","v":"0x42, "},{"$f":"IF($E$259=\"Yes\",M269,\"\")","v":"0x65, "},"0x61, ","0x74, ","0x73, ","0x20, ","0x50, ","0x69, "]
[null,null,"l","l"," ","X","L","","","",null,{"$f":"IF(ISERR(CODE(C270)),\"\",\"0x\"&DEC2HEX(CODE(C270))&\", \")","v":"0x6C, "},"0x6C, ","0x20, ","0x58, ","0x4C, ","","","",null,{"$f":"IF($E$259=\"Yes\",L270,\"\")","v":"0x6C, "},"0x6C, ","0x20, ","0x58, ","0x4C, ","","",""]
[null,null,"","","","","","","","",null,"","","","","","","","",null,"","","","","","","",""]
[null,null,"","","","","","","","",null,"","","","","","","","",null,"","","","","","","",""]
[null,null,null,null,null,null,null,null,"If Yes/No",null,null,null,null,null,"If Yes/No"]
[null,null,"Local Name Length",null,{"$f":"COUNTA(L269:S272)-COUNTIF(L269:S272,\"\")","v":13},"   +1",{"$f":"E274+1","v":14},{"$f":"\"0x\"&DEC2HEX(G274,2)&\", \"","v":"0x0E, "},{"$f":"IF(E259=\"Yes\",H274,\"\")","v":"0x0E, "},null,null,"EIR Local Name",null,"0x09, ",{"$f":"IF(E259=\"Yes\",N274,\"\")","v":"0x09, "}]
[]
[]
[null,"3. Class"]
[null,"AddClassD","Yes","No",{"$f":"M25","v":"No"}]
[]
[null,null,"Minor","Major","Service",null,"If Yes/No"]
[null,null,{"$f":"M38&\", \"","v":"0x04, "},{"$f":"K33&\", \"","v":"0x04, "},{"$f":"K30&\", \"","v":"0x20, "},null,{"$f":"IF(E278=\"Yes\",C281,\"\")","v":""},{"$f":"IF(E278=\"Yes\",D281,\"\")","v":""},{"$f":"IF(E278=\"Yes\",E281,\"\")","v":""}]
[]
[null,null,"Length",{"$f":"4","v":4},{"$f":"\"0x\"&DEC2HEX(D283,2)&\", \"","v":"0x04, "},null,{"$f":"IF(E278=\"Yes\",E283,\"\")","v":""}]
[]
[null,null,"EIR Class",null,"0x0D, ",null,{"$f":"IF(E278=\"Yes\",E285,\"\")","v":""}]
[]
[null,"4. UUID"]
[null,"SC UUID",0,1,2,3,{"$f":"M45","v":0}]
[]
[null,null,"UUID Field Length",null,{"$f":"G288*2+1","v":1},null,{"$f":"IF(G288=0,\"\",\"0x\"&DEC2HEX(E290,2)&\", \")","v":""}]
[]
[null,null,"UUID Field EIR Type",null,{"$f":"IF(G288>0, \"0x03, \",\"\")","v":""}]
[]
[null,null,null,null,"Low","Hi",null,"IF Num"]
[null,null,"UUID1",{"$f":"K48","v":"0x111E"},{"$f":"\"0x\"&MID(D295,5,2)&\", \"","v":"0x1E, "},{"$f":"\"0x\"&MID(D295,3,2)&\", \"","v":"0x11, "},null,{"$f":"IF(G288>0,E295,\"\")","v":""},{"$f":"IF(G288>0,F295,\"\")","v":""}]
[null,null,"UUID2",{"$f":"K52","v":"0x110B"},{"$f":"\"0x\"&MID(D296,5,2)&\", \"","v":"0x0B, "},{"$f":"\"0x\"&MID(D296,3,2)&\", \"","v":"0x11, "},null,{"$f":"IF(G288>1,E296,\"\")","v":""},{"$f":"IF(G288>1,F296,\"\")","v":""}]
[null,null,"UUID3",{"$f":"K56","v":"0x0000"},{"$f":"\"0x\"&MID(D297,5,2)&\", \"","v":"0x00, "},{"$f":"\"0x\"&MID(D297,3,2)&\", \"","v":"0x00, "},null,{"$f":"IF(G288>2,E297,\"\")","v":""},{"$f":"IF(G288>2,F297,\"\")","v":""}]
[]
[null,"5. Add Data"]
[null,"AddExData","Yes","No",{"$f":"G62","v":"No"}]
[]
[null,null,"Text","HEX",{"$f":"G66","v":"Text"}]
[]
[null,null,"Data Type",{"$f":"K64&\", \"","v":"0xFF, "},{"$f":"IF(E300=\"Yes\",D304,\"\")","v":""}]
[]
[null,"Text",{"$f":"G68","v":0},null,null,null,null,null,null,null,null,null,null,null,null,null,null,null,null,null,"Text/ASCII"]
[null,null,{"$f":"MID($C$306,C237,1)","v":"0"},{"$f":"MID($C$306,D237,1)","v":""},"","","","","","",null,{"$f":"IF(ISERR(CODE(C307)),\"\",\"0x\"&DEC2HEX(CODE(C307))&\", \")","v":"0x30, "},{"$f":"IF(ISERR(CODE(D307)),\"\",\"0x\"&DEC2HEX(CODE(D307))&\", \")","v":""},{"$f":"IF(ISERR(CODE(E307)),\"\",\"0x\"&DEC2HEX(CODE(E307))&\", \")","v":""},{"$f":"IF(ISERR(CODE(F307)),\"\",\"0x\"&DEC2HEX(CODE(F307))&\", \")","v":""},{"$f":"IF(ISERR(CODE(G307)),\"\",\"0x\"&DEC2HEX(CODE(G307))&\", \")","v":""},{"$f":"IF(ISERR(CODE(H307)),\"\",\"0x\"&DEC2HEX(CODE(H307))&\", \")","v":""},{"$f":"IF(ISERR(CODE(I307)),\"\",\"0x\"&DEC2HEX(CODE(I307))&\", \")","v":""},{"$f":"IF(ISERR(CODE(J307)),\"\",\"0x\"&DEC2HEX(CODE(J307))&\", \")","v":""},null,{"$f":"IF($E$302=\"Text\",L307,L313)","v":"0x30, "},{"$f":"IF($E$302=\"Text\",M307,M313)","v":""},"","","","","",""]
[null,null,{"$f":"MID($C$306,C238,1)","v":""},"","","","","","","",null,{"$f":"IF(ISERR(CODE(C308)),\"\",\"0x\"&DEC2HEX(CODE(C308))&\", \")","v":""},"","","","","","","",null,{"$f":"IF($E$302=\"Text\",L308,L314)","v":""},"","","","","","",""]
[null,null,"","","","","","","","",null,"","","","","","","","",null,"","","","","","","",""]
[null,null,"","","","","","","","",null,"","","","","","","","",null,"","","","","","","",""]
[]
[null,"HEX",null,null,null,null,null,null,null,null,null,null,null,null,null,null,null,null,null,null,"IF ADD EX"]
[null,null,{"$f":"G71","v":0},0,0,0,0,0,0,0,null,{"$f":"IF(C313=0,\"\",C313&\", \")","v":""},{"$f":"IF(D313=0,\"\",D313&\", \")","v":""},{"$f":"IF(E313=0,\"\",E313&\", \")","v":""},{"$f":"IF(F313=0,\"\",F313&\", \")","v":""},{"$f":"IF(G313=0,\"\",G313&\", \")","v":""},{"$f":"IF(H313=0,\"\",H313&\", \")","v":""},{"$f":"IF(I313=0,\"\",I313&\", \")","v":""},{"$f":"IF(J313=0,\"\",J313&\", \")","v":""},null,{"$f":"IF($E$300=\"Yes\",U307,\"\")","v":""},{"$f":"IF($E$300=\"Yes\",V307,\"\")","v":""},"","","","","",""]
[null,null,0,0,0,0,0,0,0,0,null,"","","","","","","","",null,{"$f":"IF($E$300=\"Yes\",U308,\"\")","v":""},"","","","","","",""]
[null,null,0,0,0,0,0,0,0,0,null,"","","","","","","","",null,"","","","","","","",""]
[null,null,0,0,0,0,0,0,0,0,null,{"$f":"IF(C316=0,\"\",C316&\", \")","v":""},"","","","","","","",null,"","","","","","","",""]
[]
[null,"Length",{"$f":"COUNTA(U313:AB316)-COUNTIF(U313:AB316,\"\")","v":0}," + Type 1",{"$f":"C318+1","v":1},{"$f":"\"0x\"&DEC2HEX(E318,2)&\", \"","v":"0x01, "},{"$f":"IF(E300=\"Yes\",F318,\"\")","v":""}]
[]
[null,"deffile list",null,"On","Off",null,"deffile",{"$f":"F86","v":"On"}]
[]
[]
[null,null,"Count OOB Length"]
[null,null,null,"OOB Header",null,2]
[null,null,null,"Device Address",null,6]
[null,null,null,"Local Name Field",null,{"$f":"IF(E259=\"Yes\",G274+1,0)","v":15}]
[null,null,null,"Class Field",null,{"$f":"IF(E278=\"Yes\",D283+1,0)","v":0}]
[null,null,null,"UUID Field",null,{"$f":"IF(G288>0,E290+1,0)","v":0}]
[null,null,null,"Ex Field",null,{"$f":"IF(E300=\"Yes\",E318+1,0)","v":0},null,"OOB"]
[null,null,null,"Total",null,{"$f":"SUM(F324:F329)","v":23},null,{"$f":"\"0x\"&DEC2HEX(F330,2)&\", \"","v":"0x17, "}]
[]
[null,null,"Count Payload Length"]
[null,null,null,"OOB Data",null,{"$f":"F330","v":23},null,"Payload"]
[null,null,null,"Total",null,{"$f":"F333","v":23},null,{"$f":"\"0x\"&DEC2HEX(F334,2)&\", \"","v":"0x17, "}]
[]
[]
[null,null,"Count NDEF length"]
[null,null,null,"Header length",null,1]
[null,null,null,"Type length length",null,1]
[null,null,null,"Payload length length",null,1]
[null,null,null,"ID length",null,1]
[null,null,null,"Record type length",null,{"$f":"COUNTA(L263:S266)-COUNTIF(L263:S266,\"\")","v":32}]
[null,null,null,"ID",null,1]
[null,null,null,"Payload",null,{"$f":"F334","v":23}]
[null,null,null,"total length",null,{"$f":"SUM(F338:F344)","v":60},null,{"$f":"\"0x\"&DEC2HEX(F345,2)&\", \"","v":"0x3C, "}]
[]
[]
[null,"文末",{"$f":"IF(H320=\"On\",\"    \\\",\"\")","v":"    \\"}]
[]
[]
[]
[null,"Service Class"]
[null,null,"class ","hex","description"]
[null,null,"-","0x00","..."]
[null,null,"Positioning","0x01","Location identification"]
[null,null,"Networking","0x02","LAN, Ad hoc, ..."]
[null,null,"Rendering","0x04","Printing, Speaker, ..."]
[null,null,"Capturing","0x80","Scanner, Microphone, ..."]
[null,null,"Object Transfer","0x10","v-Inbox, v-Folder, ..."]
[null,null,"Audio","0x20","Speaker, Microphone, Headset service, ..."]
[null,null,"Telephony","0x40","Cordless telephony, Modem, Headset service, ..."]
[null,null,"Information","0x80","WEB-server, WEP-server, ..."]
[]
[]
[null,"Major Device Class"]
[null,null,"name","hex","mj_name",null,"description"]
[null,null,"Miscellaneous","0x00","MJ_00","mj_name2","..."]
[null,null,"Computer","0x01","MJ_01","MJ2_Other","desktop, notebook, PDA, organizers, ..."]
[null,null,"Phone","0x02","MJ_02","MJ2_Other","cellular, cordless, payphone, modem, ..."]
[null,null,"LAN/Network_Access_Point","0x03","MJ_03","MJ2_Other","LAN, Network"]
[null,null,"Audio/Video","0x04","MJ_04","MJ2_Other","headset, speaker, stereo, video display, vcr, ..."]
[null,null,"Peripheral","0x05","MJ_05","MJ2_Other","mouse, joystick, keyboards, ..."]
[null,null,"Imaging","0x06","MJ_06","MJ2_05","printing, scanner, camera, display, ..."]
[null,null,"Uncategorized","0x1F","MJ_07","MJ2_Other","...",null,null,null,null,"Selected Major Class",{"$f":"VLOOKUP(G33, C367:E374, 3, FALSE)","v":"MJ_04"}]
[null,null,null,null,null,null,null,null,null,null,null,"Selected Major Class2",{"$f":"VLOOKUP(G33, C367:F374, 4, FALSE)","v":"MJ2_Other"}]
[null,"Minor 0x00 Miscellaneous"]
[null,null,null,"-"]
[]
[null,null,"Minor 0x01 Computer",null,null,null,null,null,null,null,"Major1 vlook table"]
[null,null,null,"Name","hex",null,null,null,null,null,"0x00","0x00"]
[null,null,null,"Uncategorized, code for device not assigned ","0x00",null,null,null,null,null,"0x01",{"$f":"VLOOKUP(G36,D381:E387,2,FALSE)","v":{"$error":"#N/A"}}]
[null,null,null,"Desktop workstation","0x04",null,null,null,null,null,"0x02",{"$f":"VLOOKUP(G36,D391:E396,2,FALSE)","v":{"$error":"#N/A"}}]
[null,null,null,"Server-class computer","0x08",null,null,null,null,null,"0x03",{"$f":"VLOOKUP(G36,D401:E408,2,FALSE)","v":{"$error":"#N/A"}}]
[null,null,null,"Laptop","0x0C",null,null,null,null,null,"0x04",{"$f":"VLOOKUP(G36,D412:E428,2,FALSE)","v":"0x04"}]
[null,null,null,"Handheld PC/PDA","0x10",null,null,null,null,null,"0x05",{"$f":"VLOOKUP(G36,D434:E436,2,FALSE)","v":{"$error":"#N/A"}}]
[null,null,null,"Palm sized PC/PDA","0x14",null,null,null,null,null,"0x06",{"$f":"VLOOKUP(G36,D450:E464,2,FALSE)","v":{"$error":"#N/A"}},{"$f":"VLOOKUP(K33, K380:L386,2,FALSE)","v":"0x04"}]
[null,null,null,"Wearable computer","0x18"]
[null,null,null,null,null,null,null,null,null,null,"Major2 vlook table"]
[null,"Minor 0x02 Phone ",null,null,null,null,null,null,null,null,"0x00","0x00"]
[null,null,null,"Name","Hex",null,null,null,null,null,"0x01","0x00"]
[null,null,null,"Uncategorized, code for device not assigned","0x00",null,null,null,null,null,"0x02","0x00"]
[null,null,null,"Cellular","0x04",null,null,null,null,null,"0x03","0x00"]
[null,null,null,"Cordless","0x08",null,null,null,null,null,"0x04","0x00"]
[null,null,null,"Smart phone","0x0C",null,null,null,null,null,"0x05",{"$f":"VLOOKUP(G38,D440:E446,2,FALSE)","v":{"$error":"#N/A"}}]
[null,null,null,"Wired modem or voice gateway","0x10",null,null,null,null,null,"0x06","0x00",{"$f":"VLOOKUP(K33, K389:L395,2,FALSE)","v":"0x00"}]
[null,null,null,"Common ISDN Access","0x14"]
[]
[]
[null,"Minor 0x03 LAN/Network_Access_Point"]
[null,null,null,"Name","Hex"]
[null,null,null,"Fully available","0x00"]
[null,null,null,"1-17% utilized","0x20"]
[null,null,null,"17-33% utilized","0x40"]
[null,null,null,"33-50% utilized","0x60"]
[null,null,null,"50-67% utilized","0x80"]
[null,null,null,"67-83% utilized","0xA0"]
[null,null,null,"83-99% utilized","0xC0"]
[null,null,null,"No service available","0xE0"]
[]
[null,"Minor 0x04 AUDIO/VIDEO"]
[null,null,null,"Name","Hex"]
[null,null,null,"Uncategorized, code not assigned","0x00"]
[null,null,null,"Headset","0x04"]
[null,null,null,"Hands-free","0x08"]
[null,null,null,"Reserved","-"]
[null,null,null,"Microphone","0x10"]
[null,null,null,"Loudspeaker","0x14"]
[null,null,null,"Headphones","0x18"]
[null,null,null,"Portable Audio","0x1C"]
[null,null,null,"Car audio","0x20"]
[null,null,null,"Set-top box","0x24"]
[null,null,null,"HiFi Audio Device","0x28"]
[null,null,null,"VCR","0x2C"]
[null,null,null,"Video Camera","0x30"]
[null,null,null,"Camcorder","0x34"]
[null,null,null,"Video Monitor","0x38"]
[null,null,null,"Video Display and oudspeaker","0x3C"]
[null,null,null,"Video Conferencing","0x40"]
[null,null,null,"Reserved","-"]
[]
[]
[null,"Peripheral  0x05"]
[null,null,null,"Name","Hex 76"]
[null,null,null,"Keyboard","0x40"]
[null,null,null,"Pointing device","0x80"]
[null,null,null,"Combo keyboard/pointing device","0xC0"]
[]
[null,null,null,"MJ2_05",null,null,"MJ2_Other"]
[null,null,null,"Name","Hex 5-0"]
[null,null,null,"Uncategorized device","0x00",null,"-"]
[null,null,null,"Joystick","0x04"]
[null,null,null,"Gamepad","0x08"]
[null,null,null,"Remote control","0x0C"]
[null,null,null,"Sensing device","0x10"]
[null,null,null,"Digitizer tablet","0x14"]
[null,null,null,"Card Reader","0x18"]
[]
[null,"Imaging 0x06"]
[null,null,null,"Name","Hex"]
[null,null,null,"Display","0x10"]
[null,null,null,"Camera","0x20"]
[null,null,null,"Scanner","0x40"]
[null,null,null,"Printer","0x80"]
[null,null,null,"Camera & Display","0x30"]
[null,null,null,"Scanner & Display","0x50"]
[null,null,null,"Scanner & Camera","0x60"]
[null,null,null,"Printer & Display","0x90"]
[null,null,null,"Printer & Camera","0xA0"]
[null,null,null,"Printer & Scanner","0xC0"]
[null,null,null,"Scanner & Camera & Display","0x70"]
[null,null,null,"Printer & Camera & Display","0xB0"]
[null,null,null,"Printer & Scanner & Display","0xD0"]
[null,null,null,"Printer & Scanner & Camera","0xE0"]
[null,null,null,"Printer & Scanner & Camera & Display","0xF0"]
[]
[]
[null,"UUID"]
[null,null,null,"Protocol Name","UUID"]
[null,null,null,"-","0x0000","-"]
[null,null,null,"ServiceDiscoveryServerServiceClassID","0x1000","Specification"]
[null,null,null,"BrowseGroupDescriptorServiceClassID","0x1001","Bluetooth Core Specification"]
[null,null,null,"SerialPort","0x1101","Bluetooth Core Specification"]
[null,null,null,"LANAccessUsingPPP","0x1102","Serial Port Profile (SPP)"]
[null,null,null,"DialupNetworking","0x1103","LAN Access Profile"]
[null,null,null,"IrMCSync","0x1104","Dial-up Networking Profile (DUN)"]
[null,null,null,"OBEXObjectPush","0x1105","Synchronization Profile (SYNC)"]
[null,null,null,"OBEXFileTransfer","0x1106","Object Push Profile (OPP)"]
[null,null,null,"IrMCSyncCommand","0x1107","File Transfer Profile (FTP)"]
[null,null,null,"Headset","0x1108","Synchronization Profile (SYNC)"]
[null,null,null,"CordlessTelephony","0x1109","Headset Profile (HSP)"]
[null,null,null,"AudioSource","0x110A","Cordless Telephony Profile (CTP)"]
[null,null,null,"AudioSink","0x110B","Advanced Audio Distribution Profile (A2DP)"]
[null,null,null,"A/V_RemoteControlTarget","0x110C","Advanced Audio Distribution Profile (A2DP)"]
[null,null,null,"AdvancedAudioDistribution","0x110D","Audio/Video Remote Control Profile (AVRCP)"]
[null,null,null,"A/V_RemoteControl","0x110E","Advanced Audio Distribution Profile (A2DP)"]
[null,null,null,"A/V_RemoteControlController","0x110F","Audio/Video Remote Control Profile (AVRCP)"]
[null,null,null,"Intercom","0x1110","Audio/Video Remote Control Profile (AVRCP)"]
[null,null,null,"Fax","0x1111","Intercom Profile (ICP)"]
[null,null,null,"Headset - Audio Gateway (AG)","0x1112","Fax Profile (FAX)"]
[null,null,null,"WAP","0x1113","Headset Profile (HSP)"]
[null,null,null,"WAP_CLIENT","0x1114","Interoperability Requirements for Bluetooth technology as a WAP, Bluetooth SIG [DEPRECATED]"]
[null,null,null,"PANU","0x1115","Interoperability Requirements for Bluetooth technology as a WAP, Bluetooth SIG [DEPRECATED]"]
[null,null,null,"NAP","0x1116","Personal Area Networking Profile (PAN)"]
[null,null,null,"GN","0x1117","Personal Area Networking Profile (PAN)"]
[null,null,null,"DirectPrinting","0x1118","Personal Area Networking Profile (PAN)"]
[null,null,null,"ReferencePrinting","0x1119","Basic Printing Profile (BPP)"]
[null,null,null,"Basic Imaging Profile","0x111A","See Basic Printing Profile (BPP)"]
[null,null,null,"ImagingResponder","0x111B","Basic Imaging Profile (BIP)"]
[null,null,null,"ImagingAutomaticArchive","0x111C","Basic Imaging Profile (BIP)"]
[null,null,null,"ImagingReferencedObjects","0x111D","Basic Imaging Profile (BIP)"]
[null,null,null,"Handsfree","0x111E","Basic Imaging Profile (BIP)"]
[null,null,null,"HandsfreeAudioGateway","0x111F","Hands-Free Profile (HFP)"]
[null,null,null,"DirectPrintingReferenceObjectsService","0x1120","Hands-free Profile (HFP)"]
[null,null,null,"ReflectedUI","0x1121","Basic Printing Profile (BPP)"]
[null,null,null,"BasicPrinting","0x1122","Basic Printing Profile (BPP)"]
[null,null,null,"PrintingStatus","0x1123","Basic Printing Profile (BPP)"]
[null,null,null,"HumanInterfaceDeviceService","0x1124","Basic Printing Profile (BPP)"]
[null,null,null,"HardcopyCableReplacement","0x1125","Human Interface Device (HID)"]
[null,null,null,"HCR_Print","0x1126","Hardcopy Cable Replacement Profile (HCRP)"]
[null,null,null,"HCR_Scan","0x1127","Hardcopy Cable Replacement Profile (HCRP)"]
[null,null,null,"Common_ISDN_Access","0x1128","Hardcopy Cable Replacement Profile (HCRP)"]
[null,null,null,"SIM_Access","0x112D","Common ISDN Access Profile (CIP)"]
[null,null,null,"Phonebook Access - PCE","0x112E","SIM Access Profile (SAP)"]
[null,null,null,"Phonebook Access - PSE","0x112F","Phonebook Access Profile (PBAP)"]
[null,null,null,"Phonebook Access","0x1130","Phonebook Access Profile (PBAP)"]
[null,null,null,"Headset - HS","0x1131","Phonebook Access Profile (PBAP)"]
[null,null,null,"Message Access Server","0x1132","Headset Profile (HSP)"]
[null,null,null,"Message Notification Server","0x1133","Message Access Profile (MAP)"]
[null,null,null,"Message Access Profile","0x1134","Message Access Profile (MAP)"]
[null,null,null,"GNSS","0x1135","Message Access Profile (MAP)"]
[null,null,null,"GNSS_Server","0x1136","Global Navigation Satellite System Profile (GNSS)"]
[null,null,null,"PnPInformation","0x1200","Global Navigation Satellite System Profile (GNSS)"]
[null,null,null,"GenericNetworking","0x1201","Device Identification (DID)"]
[null,null,null,"GenericFileTransfer","0x1202","N/A"]
[null,null,null,"GenericAudio","0x1203","N/A"]
[null,null,null,"GenericTelephony","0x1204","N/A"]
[null,null,null,"UPNP_Service","0x1205","N/A"]
[null,null,null,"UPNP_IP_Service","0x1206","Enhanced Service Discovery Profile (ESDP) [DEPRECATED]"]
[null,null,null,"ESDP_UPNP_IP_PAN","0x1300","Enhanced Service Discovery Profile (ESDP) [DEPRECATED]"]
[null,null,null,"ESDP_UPNP_IP_LAP","0x1301","Enhanced Service Discovery Profile (ESDP) [DEPRECATED]"]
[null,null,null,"ESDP_UPNP_L2CAP","0x1302","Enhanced Service Discovery Profile (ESDP)[DEPRECATED]"]
[null,null,null,"VideoSource","0x1303","Enhanced Service Discovery Profile (ESDP)[DEPRECATED]"]
[null,null,null,"VideoSink","0x1304","Video Distribution Profile (VDP)"]
[null,null,null,"VideoDistribution","0x1305","Video Distribution Profile (VDP)"]
[null,null,null,"HDP","0x1400","Video Distribution Profile (VDP)"]
[null,null,null,"HDP Source","0x1401","Health Device Profile"]
[null,null,null,"HDP Sink","0x1402","Health Device Profile (HDP)"]
[null,null,null,null,null,"Health Device Profile (HDP)"]
[]
[]
[null,"EIR Data Type"]
[null,null,null,"Name","Hex"]
[null,null,null,"Bluetootu Local Name","0x09",null,"Complete local name"]
[null,null,null,"Bluetootu Local Name","0x08"]
[null,null,null,"Simple Pairing Hash C","0x0E"]
[null,null,null,"Simple Pairing Randomizer R","0x0F"]
[null,null,null,"Service Class UUID","0x02"]
[null,null,null,"Service Class UUID","0x03","16bit","Complete list"]
[null,null,null,"Service Class UUID","0x04","16bit"]
[null,null,null,"Service Class UUID","0x05","32bit"]
[null,null,null,"Service Class UUID","0x06","32bit"]
[null,null,null,"Service Class UUID","0x07","128bit"]
[null,null,null,"Class of Device","0x0D","128bit"]
[null,"Other EIR"]
[null,null,null,"Name","Hex"]
[null,null,null,"Simple Pairing Hash C","0x0E"]
[null,null,null,"Simple Pairing Randomizer R","0x0F"]
[null,null,null,"Flags","0x01"]
[null,null,null,"Manufacturer Specific Data","0xFF"]
[null,null,null,"TX Power Level","0x0A"]